Workbook

Sheet Photos
B2: Photos Pilotes | F2: Photos F1
B3: Noms | D3: Photos | F3: Noms | H3: Photos
B4: HAMILTON Lewis | C4: ="Photos!"&ADDRESS(ROW(C4),COLUMN(D4)) -> Photos!$D$4 | F4: MERCEDES | G4: ="Photos!"&ADDRESS(ROW(G4),COLUMN(H4)) -> Photos!$H$4
B5: BOTTAS Valtteri | C5: Photos!$D$5 | F5: FERRARI | G5: Photos!$H$5
B6: LECLERC Charles | C6: Photos!$D$6 | F6: RED BULL | G6: Photos!$H$6
B7: VETTEL Sebastian | C7: Photos!$D$7 | F7: RACING POINT | G7: Photos!$H$7
B8: VERSTAPPEN Max | C8: Photos!$D$8 | F8: WILLIAMS | G8: Photos!$H$8
B9: ALBON Alexander | C9: Photos!$D$9 | F9: RENAULT | G9: Photos!$H$9
B10: PEREZ Sergio | C10: Photos!$D$10 | F10: ALPHA TAURI | G10: Photos!$H$10
B11: STROLL Lance | C11: Photos!$D$11 | F11: HASS | G11: Photos!$H$11
B12: RUSSELL George | C12: Photos!$D$12 | F12: McLAREN | G12: Photos!$H$12
B13: LATIFI Nichola | C13: Photos!$D$13 | F13: ALFA ROMEO | G13: Photos!$H$13
B14: RICCIARDO Daniel | C14: Photos!$D$14
B15: OCON Sebastian | C15: Photos!$D$15
B16: KVYAT Daniil | C16: Photos!$D$16
B17: GASLY Pierre | C17: Photos!$D$17
B18: GROSJEAN Romain | C18: Photos!$D$18
B19: MAGNUSSEN Kevin | C19: Photos!$D$19
B20: NORRIS Lando | C20: Photos!$D$20
B21: SAINZ.Jr Carlos | C21: Photos!$D$21
B22: RAÏKKÖNEN Kimi | C22: Photos!$D$22
B23: GIOVINAZZI Antonio | C23: Photos!$D$23

Sheet Champions
C2: CHAMPIONNAT PILOTES 2020
F4: CHAMPION 2020
F5: =IF(Pilotes!G5=1,Pilotes!B5,"") -> HAMILTON Lewis
B7: DEUXIÈME | J7: TROIXIÈME
B8: =IF(Pilotes!G6=2,Pilotes!B6,"") -> BOTTAS Valtteri | J8: =IF(Pilotes!G7=3,Pilotes!B7,"") -> VERSTAPPEN Max
C16: CHAMPIONNAT CONSTRUCTEURS 2020
F18: CHAMPION 2019
F19: =IF(Écuries!F4=1,Écuries!B4,"") -> MERCEDES
B21: DEUXIÈME | J21: TROIXIÈME
B22: =IF(Écuries!F5=2,Écuries!B5,"") -> RED BULL | J22: =IF(Écuries!F6=3,Écuries!B6,"") -> McLAREN

Sheet Écuries
B3: ÉCURIES | C3: POINTS | D3: Écart/premier | E3: Écart/précédent | F3: RANG
B4: MERCEDES | C4: =SUM(Melbourne:AbuDhabi!$G$5:$G$7) -> 533 | F4: =IF(C4="",0,(RANK(C4,$C$4:$C$13)))+COUNTIF(C$4:C4,C4)-1 -> 1
B5: RED BULL | C5: =SUM(Melbourne:AbuDhabi!$G$11:$G$13) -> 274 | D5: =C5-C4 -> -259 | E5: =C5-C4 -> -259 | F5: =IF(C5="",0,(RANK(C5,$C$4:$C$13)))+COUNTIF(C$4:C5,C5)-1 -> 2
B6: McLAREN | C6: =SUM(Melbourne:AbuDhabi!$G$29:$G$31) -> 171 | D6: =C6-C4 -> -362 | E6: =C6-C5 -> -103 | F6: =IF(C6="",0,(RANK(C6,$C$4:$C$13)))+COUNTIF(C$4:C6,C6)-1 -> 3
B7: RACING POINT * | C7: =SUM(Melbourne:AbuDhabi!$G$14:$G$16)-15 -> 154 | D7: =C7-C4 -> -379 | E7: -17 | F7: =IF(C7="",0,(RANK(C7,$C$4:$C$13)))+COUNTIF(C$4:C7,C7)-1 -> 4
B8: RENAULT | C8: =SUM(Melbourne:AbuDhabi!$G$20:$G$22) -> 144 | D8: =C8-C4 -> -389 | E8: -10 | F8: =IF(C8="",0,(RANK(C8,$C$4:$C$13)))+COUNTIF(C$4:C8,C8)-1 -> 5
B9: FERRARI | C9: =SUM(Melbourne:AbuDhabi!$G$8:$G$10) -> 131 | D9: =C9-C4 -> -402 | E9: -13 | F9: =IF(C9="",0,(RANK(C9,$C$4:$C$13)))+COUNTIF(C$4:C9,C9)-1 -> 6
B10: ALPHA TAURI | C10: =SUM(Melbourne:AbuDhabi!$G$23:$G$25) -> 97 | D10: =C10-C4 -> -436 | E10: -34 | F10: =IF(C10="",0,(RANK(C10,$C$4:$C$13)))+COUNTIF(C$4:C10,C10)-1 -> 7
B11: ALFA ROMÉO | C11: =SUM(Melbourne:AbuDhabi!$G$32:$G$34) -> 8 | D11: =C11-C4 -> -525 | E11: -89 | F11: =IF(C11="",0,(RANK(C11,$C$4:$C$13)))+COUNTIF(C$4:C11,C11)-1 -> 8
B12: HASS | C12: =SUM(Melbourne:AbuDhabi!$G$26:$G$28) -> 3 | D12: =C12-C4 -> -530 | E12: -5 | F12: =IF(C12="",0,(RANK(C12,$C$4:$C$13)))+COUNTIF(C$4:C12,C12)-1 -> 9
B13: WILLIAMS | C13: =SUM(Melbourne:AbuDhabi!$G$17:$G$19) -> 0 | D13: =C13-C4 -> -533 | E13: -3 | F13: =IF(C13="",0,(RANK(C13,$C$4:$C$13)))+COUNTIF(C$4:C13,C13)-1 -> 10
B16: *-15 points pour copie de frein sur Mercedes en 2019

Sheet Pilotes
B3: PILOTES | C3: Points | D3: Écart-premier | E3: Écart/précédent | F3: Pôle Position | G3: Place | H3: 1 | J3: Courses
C4: =IFERROR(SUM(Melbourne!G33,[1]Bahreïn!F33),"") -> 0 | G4: =IF(C4=0,"",(RANK(C4,C1:C4))) ->  | H4: Pos.saison | J4: =IF(F4=0,"",(RANK(F4,F1:F4))) -> 
B5: HAMILTON Lewis | C5: =SUM(Melbourne:AbuDhabi!$G$5) -> 332 | F5: =CalculPool(B5) -> 10 | G5: =IF(C5="",0,(RANK(C5,$C$5:$C$25))) -> 1 | H5: =CalculPosition(B5) -> 11 | I5: =H5/17 -> 0.6470588235 | J5: Melbourne | K5: Autriche2 | L5: Hongrie | M5: GB | N5: Espagne | O5: Belgique | P5: Toscane | Q5: Nürburgring | R5: Portugal | S5: Émilie-Romagne | T5: Turquie | U5: Bahrein
B6: BOTTAS Valtteri | C6: =SUM(Melbourne:AbuDhabi!$G$6) -> 201 | D6: =C6-C5 -> -131 | E6: =C6-C5 -> -131 | F6: =CalculPool(B6) -> 3 | G6: =IF(C6="",0,(RANK(C6,$C$5:$C$25))) -> 2 | H6: =CalculPosition(B6) -> 2 | I6: =H6/17 -> 0.1176470588 | J6: Vietnam | K6: Autriche | L6: Russie
B7: VERSTAPPEN Max | C7: =SUM(Melbourne:AbuDhabi!$G$11) -> 189 | D7: =C7-C5 -> -143 | E7: =C7-C6 -> -12 | F7: 0 | G7: 3 | H7: 1 | I7: 0.05882352941 | J7: Chine | K7: GrB
B8: RICCIARDO Daniel | C8: =SUM(Melbourne:AbuDhabi!$G$20) -> 102 | D8: =C8-C5 -> -230 | E8: -87 | F8: =CalculPool(B8) -> 0 | G8: 4 | H8: 0 | I8: 0 | J8: Hollande
B9: PEREZ Sergio | C9: =SUM(Melbourne:AbuDhabi!$G$14) -> 100 | D9: =C9-C5 -> -232 | E9: -2 | F9: 0 | G9: 5 | H9: 0 | I9: 0 | J9: Monaco
B10: LECLERC Charles | C10: =SUM(Melbourne:AbuDhabi!$G$9) -> 98 | D10: =C10-C5 -> -234 | E10: -2 | F10: 0 | G10: 6 | H10: 0 | I10: 0 | J10: Azerbaïdjan
B11: NORRIS Lando | C11: =SUM(Melbourne:AbuDhabi!$G$29) -> 86 | D11: =C11-C5 -> -246 | E11: -12 | F11: 0 | G11: 7 | H11: 0 | I11: 0 | J11: Canada
B12: SAINZ.Jr Carlos | C12: =SUM(Melbourne:AbuDhabi!$G$30) -> 85 | D12: =C12-C5 -> -247 | E12: -1 | F12: 0 | G12: 8 | H12: 0 | I12: 0 | J12: France
B13: ALBON Alexander | C13: =SUM(Melbourne:AbuDhabi!$G$12) -> 85 | D13: =C13-C5 -> -247 | E13: 0 | F13: 0 | G13: 8 | H13: 0 | I13: 0 | J13: Autriche
B14: GASLY Pierre | C14: =SUM(Melbourne:AbuDhabi!$G$24) -> 71 | D14: =C14-C5 -> -261 | E14: -14 | F14: 0 | G14: 10 | H14: 1 | I14: 0.05882352941 | J14: Autriche2 | K14: Italie
B15: STROLL Lance | C15: =SUM(Melbourne:AbuDhabi!$G$15) -> 59 | D15: =C15-C5 -> -273 | E15: -12 | F15: 1 | G15: 11 | H15: 0 | I15: 0 | J15: Hongrie
B16: OCON Sebastian | C16: =SUM(Melbourne:AbuDhabi!$G$21) -> 42 | D16: =C16-C5 -> -290 | E16: -17 | F16: 0 | G16: 12 | H16: 0 | I16: 0 | J16: GB
B17: VETTEL Sebastian | C17: =SUM(Melbourne:AbuDhabi!$G$8) -> 33 | D17: =C17-C5 -> -299 | E17: -9 | F17: 0 | G17: 13 | H17: 0 | I17: 0 | J17: GrB
B18: KVYAT Daniil | C18: =SUM(Melbourne:AbuDhabi!$G$23) -> 26 | D18: =C18-C5 -> -306 | E18: -7 | F18: =CalculPool(B18) -> 0 | G18: 14 | H18: 0 | I18: 0 | J18: Espagne
B19: HULKENBERG Nico | C19: =SUM(Melbourne:AbuDhabi!$G$16) -> 10 | D19: =C19-C5 -> -322 | E19: -16 | F19: 0 | G19: 15 | H19: 0 | I19: 0 | J19: Belgique
B20: GIOVINAZZI Antonio | C20: =SUM(Melbourne:AbuDhabi!$G$33) -> 4 | D20: =C20-C5 -> -328 | E20: -6 | F20: 0 | G20: 16 | H20: 0 | I20: 0 | J20: Italie
B21: RAÏKKÖNEN Kimi | C21: =SUM(Melbourne:AbuDhabi!$G$32) -> 4 | D21: =C21-C5 -> -328 | E21: 0 | F21: 0 | G21: 16 | H21: 0 | I21: 0 | J21: Toscane
B22: GROSJEAN Romain | C22: =SUM(Melbourne:AbuDhabi!$G$26) -> 2 | D22: =C22-C5 -> -330 | E22: -2 | F22: 0 | G22: 18 | H22: 0 | I22: 0 | J22: Russie
B23: MAGNUSSEN Kevin | C23: =SUM(Melbourne:AbuDhabi!$G$27) -> 1 | D23: =C23-C5 -> -331 | E23: -1 | F23: 0 | G23: 19 | H23: 0 | I23: 0 | J23: Nürburgring
B24: RUSSELL George | C24: =SUM(Melbourne:AbuDhabi!$G$17) -> 0 | D24: =C24-C5 -> -332 | E24: -1 | F24: 0 | G24: 20 | H24: 0 | I24: 0 | J24: Portugal
B25: LATIFI Nichola | C25: =SUM(Melbourne:AbuDhabi!$G$18) -> 0 | D25: =C25-C5 -> -332 | E25: 0 | F25: 0 | G25: 20 | H25: 0 | I25: 0 | J25: Émilie-Romagne
J26: Turquie
J27: Bahrein
J28: Sakhir
J29: AbuDhabi

Sheet Melbourne
A1: JEREZ - 26 JUILLET 2020
A3: PILOTES | B3: ECURIES | C3: VOITURES | D3: Finish | E3: Pôle | F3: Pt tour | G3: Points | I3: CLASSEMENT
I4: ÉCURIES | J4: POINTS | K4: RANG
A5: HAMILTON Lewis | B5: MERCEDES | G5: =IFERROR(CHOOSE(D5,25,18,15,12,10,8,6,4,2,1)+(F5=1),"") ->  | I5: MERCEDES | J5: =SUM($G$5:$G$7) -> 0 | K5: =IF(J5="",0,(RANK(J5,$J$5:$J$14)))+COUNTIF(J$5:J5,J5)-1 -> 1
A6: BOTTAS Valtteri | G6: =IFERROR(CHOOSE(D6,25,18,15,12,10,8,6,4,2,1)+(F6=1),"") ->  | I6: ALFA ROMEO | J6: =SUM($G$32:$G$34) -> 0 | K6: =IF(J6="",0,(RANK(J6,$J$5:$J$14)))+COUNTIF(J$5:J6,J6)-1 -> 2
I7: Mc LAREN | J7: =SUM($G$29:$G$31) -> 0 | K7: =IF(J7="",0,(RANK(J7,$J$5:$J$14)))+COUNTIF(J$5:J7,J7)-1 -> 3
A8: VETTEL Sebastian | B8: FERRARI | I8: RENAULT | J8: =SUM($G$20:$G$22) -> 0 | K8: =IF(J8="",0,(RANK(J8,$J$5:$J$14)))+COUNTIF(J$5:J8,J8)-1 -> 4
A9: LECLERC Charles | I9: RED BULL | J9: =SUM($G$11:$G$13) -> 0 | K9: =IF(J9="",0,(RANK(J9,$J$5:$J$14)))+COUNTIF(J$5:J9,J9)-1 -> 5
I10: FERRARI | J10: =SUM($G$8:$G$10) -> 0 | K10: =IF(J10="",0,(RANK(J10,$J$5:$J$14)))+COUNTIF(J$5:J10,J10)-1 -> 6
A11: VERSTAPPEN Max | B11: RED BULL | I11: ALPHA TAURI | J11: =SUM($G$23:$G$25) -> 0 | K11: =IF(J11="",0,(RANK(J11,$J$5:$J$14)))+COUNTIF(J$5:J11,J11)-1 -> 7
A12: ALBON Alexander | I12: WILLIAMS | J12: =SUM($G$17:$G$19) -> 0 | K12: =IF(J12="",0,(RANK(J12,$J$5:$J$14)))+COUNTIF(J$5:J12,J12)-1 -> 8
I13: RACING POINT | J13: =SUM($G$14:$G$16) -> 0 | K13: =IF(J13="",0,(RANK(J13,$J$5:$J$14)))+COUNTIF(J$5:J13,J13)-1 -> 9
A14: PEREZ Sergio | B14: RACING POINT | I14: HAAS | J14: =SUM($G$26:$G$28) -> 0 | K14: =IF(J14="",0,(RANK(J14,$J$5:$J$14)))+COUNTIF(J$5:J14,J14)-1 -> 10
A15: STROLL Lance
A17: RUSSELL George | B17: WILLIAMS
A18: LATIFI Nichola | I18: ANNULÉ
A20: RICCIARDO Daniel | B20: RENAULT
A21: OCON Sebastian
A23: KVYAT Daniil | B23: ALPHA TAURI
A24: GASLY Pierre
A26: GROSJEAN Romain | B26: HAAS
A27: MAGNUSSEN Kevin
A29: NORRIS Lando | B29: McLAREN
A30: SAINZ.Jr Carlos
A32: RAÏKKÖNEN Kimi | B32: ALFA ROMEO
A33: GIOVINAZZI Antonio

Sheet Vietnam
A1: MASARYK - 9 AOUT 2020
A3: PILOTES | B3: ECURIES | C3: VOITURES | D3: Finish | E3: Pôle | F3: Pt tour | G3: Points | I3: CLASSEMENT
I4: ÉCURIES | J4: POINTS | K4: RANG | L4: TOTAL | M4: PONCTUEL
A5: HAMILTON Lewis | B5: MERCEDES | G5: =IFERROR(CHOOSE(D5,25,18,15,12,10,8,6,4,2,1)+(F5=1),"") ->  | I5: ALFA ROMEO | J5: =SUM($G$32:$G$34) -> 0 | K5: =IF(J5="",0,(RANK(J5,$J$5:$J$14)))+COUNTIF(J$5:J5,J5)-1 -> 1 | L5: =SUMIF(Melbourne!$J$5:$J$14,Vietnam!$J5,Melbourne!$J$5:$J$14)+$J$514 -> 0 | M5: =IF(L5="",0,(RANK(L5,$L$5:$L$14)))+COUNTIF(L$5:L5,L5)-1 -> 1
A6: BOTTAS Valtteri | G6: =IFERROR(CHOOSE(D6,25,18,15,12,10,8,6,4,2,1)+(F6=1),"") ->  | I6: Mc LAREN | J6: =SUM($G$29:$G$31) -> 0 | K6: =IF(J6="",0,(RANK(J6,$J$5:$J$14)))+COUNTIF(J$5:J6,J6)-1 -> 2 | L6: =SUMIF(Melbourne!$J$5:$J$14,Vietnam!$J6,Melbourne!$J$5:$J$14)+$J$514 -> 0 | M6: =IF(L6="",0,(RANK(L6,$L$5:$L$14)))+COUNTIF(L$5:L6,L6)-1 -> 2
I7: RENAULT | J7: =SUM($G$20:$G$22) -> 0 | K7: =IF(J7="",0,(RANK(J7,$J$5:$J$14)))+COUNTIF(J$5:J7,J7)-1 -> 3 | L7: =SUMIF(Melbourne!$J$5:$J$14,Vietnam!$J7,Melbourne!$J$5:$J$14)+$J$514 -> 0 | M7: =IF(L7="",0,(RANK(L7,$L$5:$L$14)))+COUNTIF(L$5:L7,L7)-1 -> 3
A8: VETTEL Sebastian | B8: FERRARI | I8: RED BULL | J8: =SUM($G$11:$G$13) -> 0 | K8: =IF(J8="",0,(RANK(J8,$J$5:$J$14)))+COUNTIF(J$5:J8,J8)-1 -> 4 | L8: =SUMIF(Melbourne!$J$5:$J$14,Vietnam!$J8,Melbourne!$J$5:$J$14)+$J$514 -> 0 | M8: =IF(L8="",0,(RANK(L8,$L$5:$L$14)))+COUNTIF(L$5:L8,L8)-1 -> 4
A9: LECLERC Charles | I9: FERRARI | J9: =SUM($G$8:$G$10) -> 0 | K9: =IF(J9="",0,(RANK(J9,$J$5:$J$14)))+COUNTIF(J$5:J9,J9)-1 -> 5 | L9: =SUMIF(Melbourne!$J$5:$J$14,Vietnam!$J9,Melbourne!$J$5:$J$14)+$J$514 -> 0 | M9: =IF(L9="",0,(RANK(L9,$L$5:$L$14)))+COUNTIF(L$5:L9,L9)-1 -> 5
I10: ALPHA TAURI | J10: =SUM($G$23:$G$25) -> 0 | K10: =IF(J10="",0,(RANK(J10,$J$5:$J$14)))+COUNTIF(J$5:J10,J10)-1 -> 6 | L10: =SUMIF(Melbourne!$J$5:$J$14,Vietnam!$J10,Melbourne!$J$5:$J$14)+$J$514 -> 0 | M10: =IF(L10="",0,(RANK(L10,$L$5:$L$14)))+COUNTIF(L$5:L10,L10)-1 -> 6
A11: VERSTAPPEN Max | B11: RED BULL | I11: WILLIAMS | J11: =SUM($G$17:$G$19) -> 0 | K11: =IF(J11="",0,(RANK(J11,$J$5:$J$14)))+COUNTIF(J$5:J11,J11)-1 -> 7 | L11: =SUMIF(Melbourne!$J$5:$J$14,Vietnam!$J11,Melbourne!$J$5:$J$14)+$J$514 -> 0 | M11: =IF(L11="",0,(RANK(L11,$L$5:$L$14)))+COUNTIF(L$5:L11,L11)-1 -> 7
A12: ALBON Alexander | I12: MERCEDES | J12: =SUM($G$5:$G$7) -> 0 | K12: =IF(J12="",0,(RANK(J12,$J$5:$J$14)))+COUNTIF(J$5:J12,J12)-1 -> 8 | L12: =SUMIF(Melbourne!$J$5:$J$14,Vietnam!$J12,Melbourne!$J$5:$J$14)+$J$514 -> 0 | M12: =IF(L12="",0,(RANK(L12,$L$5:$L$14)))+COUNTIF(L$5:L12,L12)-1 -> 8
I13: RACING POINT | J13: =SUM($G$14:$G$16) -> 0 | K13: =IF(J13="",0,(RANK(J13,$J$5:$J$14)))+COUNTIF(J$5:J13,J13)-1 -> 9 | L13: =SUMIF(Melbourne!$J$5:$J$14,Vietnam!$J13,Melbourne!$J$5:$J$14)+$J$514 -> 0 | M13: =IF(L13="",0,(RANK(L13,$L$5:$L$14)))+COUNTIF(L$5:L13,L13)-1 -> 9
A14: PEREZ Sergio | B14: RACING POINT | I14: HAAS | J14: =SUM($G$26:$G$28) -> 0 | K14: =IF(J14="",0,(RANK(J14,$J$5:$J$14)))+COUNTIF(J$5:J14,J14)-1 -> 10 | L14: =SUMIF(Melbourne!$J$5:$J$14,Vietnam!$J14,Melbourne!$J$5:$J$14)+$J$514 -> 0 | M14: =IF(L14="",0,(RANK(L14,$L$5:$L$14)))+COUNTIF(L$5:L14,L14)-1 -> 10
A15: STROLL Lance
A17: RUSSELL George | B17: WILLIAMS
A18: LATIFI Nichola | I18: ANNULÉ
A20: RICCIARDO Daniel | B20: RENAULT
A21: OCON Sebastian
A23: KVYAT Daniil | B23: ALPHA TAURI
A24: GASLY Pierre
A26: GROSJEAN Romain | B26: HAAS
A27: MAGNUSSEN Kevin
A29: NORRIS Lando | B29: McLAREN
A30: SAINZ.Jr Carlos
A32: RAÏKKÖNEN Kimi | B32: ALFA ROMEO
A33: GIOVINAZZI Antonio

Sheet Chine
A1: SPIELBERG - 23 AOUT 2020
A3: PILOTES | B3: ECURIES | C3: VOITURES | D3: Finish | E3: Pôle | F3: Pt tour | G3: Points | I3: CLASSEMENT
I4: ÉCURIES | J4: POINTS | K4: RANG | L4: TOTAL | M4: PONCTUEL
A5: HAMILTON Lewis | B5: MERCEDES | G5: =IFERROR(CHOOSE(D5,25,18,15,12,10,8,6,4,2,1)+(F5=1),"") ->  | I5: Mc LAREN | J5: =SUM($G$29:$G$31) -> 0 | K5: =IF(J5="",0,(RANK(J5,$J$5:$J$14)))+COUNTIF(J$5:J5,J5)-1 -> 1 | L5: =SUMIF(Vietnam!$J$5:$J$14,Chine!$J5,Vietnam!$J$5:$J$14)+$J$14 -> 0 | M5: =IF(L5="",0,(RANK(L5,$L$5:$L$14)))+COUNTIF(L$5:L5,L5)-1 -> 1
A6: BOTTAS Valtteri | G6: =IFERROR(CHOOSE(D6,25,18,15,12,10,8,6,4,2,1)+(F6=1),"") ->  | I6: ALFA ROMEO | J6: =SUM($G$32:$G$34) -> 0 | K6: =IF(J6="",0,(RANK(J6,$J$5:$J$14)))+COUNTIF(J$5:J6,J6)-1 -> 2 | L6: =SUMIF(Vietnam!$J$5:$J$14,Chine!$J6,Vietnam!$J$5:$J$14)+$J$14 -> 0 | M6: =IF(L6="",0,(RANK(L6,$L$5:$L$14)))+COUNTIF(L$5:L6,L6)-1 -> 2
I7: RENAULT | J7: =SUM($G$20:$G$22) -> 0 | K7: =IF(J7="",0,(RANK(J7,$J$5:$J$14)))+COUNTIF(J$5:J7,J7)-1 -> 3 | L7: =SUMIF(Vietnam!$J$5:$J$14,Chine!$J7,Vietnam!$J$5:$J$14)+$J$14 -> 0 | M7: =IF(L7="",0,(RANK(L7,$L$5:$L$14)))+COUNTIF(L$5:L7,L7)-1 -> 3
A8: VETTEL Sebastian | B8: FERRARI | I8: RED BULL | J8: =SUM($G$11:$G$13) -> 0 | K8: =IF(J8="",0,(RANK(J8,$J$5:$J$14)))+COUNTIF(J$5:J8,J8)-1 -> 4 | L8: =SUMIF(Vietnam!$J$5:$J$14,Chine!$J8,Vietnam!$J$5:$J$14)+$J$14 -> 0 | M8: =IF(L8="",0,(RANK(L8,$L$5:$L$14)))+COUNTIF(L$5:L8,L8)-1 -> 4
A9: LECLERC Charles | I9: FERRARI | J9: =SUM($G$8:$G$10) -> 0 | K9: =IF(J9="",0,(RANK(J9,$J$5:$J$14)))+COUNTIF(J$5:J9,J9)-1 -> 5 | L9: =SUMIF(Vietnam!$J$5:$J$14,Chine!$J9,Vietnam!$J$5:$J$14)+$J$14 -> 0 | M9: =IF(L9="",0,(RANK(L9,$L$5:$L$14)))+COUNTIF(L$5:L9,L9)-1 -> 5
I10: ALPHA TAURI | J10: =SUM($G$23:$G$25) -> 0 | K10: =IF(J10="",0,(RANK(J10,$J$5:$J$14)))+COUNTIF(J$5:J10,J10)-1 -> 6 | L10: =SUMIF(Vietnam!$J$5:$J$14,Chine!$J10,Vietnam!$J$5:$J$14)+$J$14 -> 0 | M10: =IF(L10="",0,(RANK(L10,$L$5:$L$14)))+COUNTIF(L$5:L10,L10)-1 -> 6
A11: VERSTAPPEN Max | B11: RED BULL | I11: WILLIAMS | J11: =SUM($G$17:$G$19) -> 0 | K11: =IF(J11="",0,(RANK(J11,$J$5:$J$14)))+COUNTIF(J$5:J11,J11)-1 -> 7 | L11: =SUMIF(Vietnam!$J$5:$J$14,Chine!$J11,Vietnam!$J$5:$J$14)+$J$14 -> 0 | M11: =IF(L11="",0,(RANK(L11,$L$5:$L$14)))+COUNTIF(L$5:L11,L11)-1 -> 7
A12: ALBON Alexander | I12: MERCEDES | J12: =SUM($G$5:$G$7) -> 0 | K12: =IF(J12="",0,(RANK(J12,$J$5:$J$14)))+COUNTIF(J$5:J12,J12)-1 -> 8 | L12: =SUMIF(Vietnam!$J$5:$J$14,Chine!$J12,Vietnam!$J$5:$J$14)+$J$14 -> 0 | M12: =IF(L12="",0,(RANK(L12,$L$5:$L$14)))+COUNTIF(L$5:L12,L12)-1 -> 8
I13: RACING POINT | J13: =SUM($G$14:$G$16) -> 0 | K13: =IF(J13="",0,(RANK(J13,$J$5:$J$14)))+COUNTIF(J$5:J13,J13)-1 -> 9 | L13: =SUMIF(Vietnam!$J$5:$J$14,Chine!$J13,Vietnam!$J$5:$J$14)+$J$14 -> 0 | M13: =IF(L13="",0,(RANK(L13,$L$5:$L$14)))+COUNTIF(L$5:L13,L13)-1 -> 9
A14: PEREZ Sergio | B14: RACING POINT | I14: HAAS | J14: =SUM($G$26:$G$28) -> 0 | K14: =IF(J14="",0,(RANK(J14,$J$5:$J$14)))+COUNTIF(J$5:J14,J14)-1 -> 10 | L14: =SUMIF(Vietnam!$J$5:$J$14,Chine!$J14,Vietnam!$J$5:$J$14)+$J$14 -> 0 | M14: =IF(L14="",0,(RANK(L14,$L$5:$L$14)))+COUNTIF(L$5:L14,L14)-1 -> 10
A15: STROLL Lance
A17: RUSSELL George | B17: WILLIAMS
A18: LATIFI Nichola | I18: ANNULÉ
A20: RICCIARDO Daniel | B20: RENAULT
A21: OCON Sebastian
A23: KVYAT Daniil | B23: ALPHA TAURI
A24: GASLY Pierre
A26: GROSJEAN Romain | B26: HAAS
A27: MAGNUSSEN Kevin
A29: NORRIS Lando | B29: McLAREN
A30: SAINZ.Jr Carlos
A32: RAÏKKÖNEN Kimi | B32: ALFA ROMEO
A33: GIOVINAZZI Antonio

Sheet Hollande
A1: MISANO- 13 SEPTEMBRE 2020
A3: PILOTES | B3: ECURIES | C3: VOITURES | D3: Finish | E3: Pôle | F3: Pt tour | G3: Points | I3: CLASSEMENT
I4: ÉCURIES | J4: POINTS | K4: RANG | L4: TOTAL | M4: PONCTUEL
A5: HAMILTON Lewis | B5: MERCEDES | G5: =IFERROR(CHOOSE(D5,25,18,15,12,10,8,6,4,2,1)+(F5=1),"") ->  | I5: ALPHA TAURI | J5: =SUM($G$23:$G$25) -> 0 | K5: =IF(J5="",0,(RANK(J5,$J$5:$J$14)))+COUNTIF(J$5:J5,J5)-1 -> 1 | L5: =SUMIF(Chine!$I$5:$I$14,Hollande!$I5,Chine!$L$5:$L$14)+$J$514 -> 0 | M5: =IF(L5="",0,(RANK(L5,$L$5:$L$14)))+COUNTIF(L$5:L5,L5)-1 -> 1
A6: BOTTAS Valtteri | G6: =IFERROR(CHOOSE(D6,25,18,15,12,10,8,6,4,2,1)+(F6=1),"") ->  | I6: ALFA ROMEO | J6: =SUM($G$32:$G$34) -> 0 | K6: =IF(J6="",0,(RANK(J6,$J$5:$J$14)))+COUNTIF(J$5:J6,J6)-1 -> 2 | L6: =SUMIF(Chine!$I$5:$I$14,Hollande!$I6,Chine!$L$5:$L$14)+$J$514 -> 0 | M6: =IF(L6="",0,(RANK(L6,$L$5:$L$14)))+COUNTIF(L$5:L6,L6)-1 -> 2
I7: Mc LAREN | J7: =SUM($G$29:$G$31) -> 0 | K7: =IF(J7="",0,(RANK(J7,$J$5:$J$14)))+COUNTIF(J$5:J7,J7)-1 -> 3 | L7: =SUMIF(Chine!$I$5:$I$14,Hollande!$I7,Chine!$L$5:$L$14)+$J$514 -> 0 | M7: =IF(L7="",0,(RANK(L7,$L$5:$L$14)))+COUNTIF(L$5:L7,L7)-1 -> 3
A8: VETTEL Sebastian | B8: FERRARI | I8: RENAULT | J8: =SUM($G$20:$G$22) -> 0 | K8: =IF(J8="",0,(RANK(J8,$J$5:$J$14)))+COUNTIF(J$5:J8,J8)-1 -> 4 | L8: =SUMIF(Chine!$I$5:$I$14,Hollande!$I8,Chine!$L$5:$L$14)+$J$514 -> 0 | M8: =IF(L8="",0,(RANK(L8,$L$5:$L$14)))+COUNTIF(L$5:L8,L8)-1 -> 4
A9: LECLERC Charles | I9: RED BULL | J9: =SUM($G$11:$G$13) -> 0 | K9: =IF(J9="",0,(RANK(J9,$J$5:$J$14)))+COUNTIF(J$5:J9,J9)-1 -> 5 | L9: =SUMIF(Chine!$I$5:$I$14,Hollande!$I9,Chine!$L$5:$L$14)+$J$514 -> 0 | M9: =IF(L9="",0,(RANK(L9,$L$5:$L$14)))+COUNTIF(L$5:L9,L9)-1 -> 5
I10: FERRARI | J10: =SUM($G$8:$G$10) -> 0 | K10: =IF(J10="",0,(RANK(J10,$J$5:$J$14)))+COUNTIF(J$5:J10,J10)-1 -> 6 | L10: =SUMIF(Chine!$I$5:$I$14,Hollande!$I10,Chine!$L$5:$L$14)+$J$514 -> 0 | M10: =IF(L10="",0,(RANK(L10,$L$5:$L$14)))+COUNTIF(L$5:L10,L10)-1 -> 6
A11: VERSTAPPEN Max | B11: RED BULL | I11: WILLIAMS | J11: =SUM($G$17:$G$19) -> 0 | K11: =IF(J11="",0,(RANK(J11,$J$5:$J$14)))+COUNTIF(J$5:J11,J11)-1 -> 7 | L11: =SUMIF(Chine!$I$5:$I$14,Hollande!$I11,Chine!$L$5:$L$14)+$J$514 -> 0 | M11: =IF(L11="",0,(RANK(L11,$L$5:$L$14)))+COUNTIF(L$5:L11,L11)-1 -> 7
A12: ALBON Alexander | I12: MERCEDES | J12: =SUM($G$5:$G$7) -> 0 | K12: =IF(J12="",0,(RANK(J12,$J$5:$J$14)))+COUNTIF(J$5:J12,J12)-1 -> 8 | L12: =SUMIF(Chine!$I$5:$I$14,Hollande!$I12,Chine!$L$5:$L$14)+$J$514 -> 0 | M12: =IF(L12="",0,(RANK(L12,$L$5:$L$14)))+COUNTIF(L$5:L12,L12)-1 -> 8
I13: RACING POINT | J13: =SUM($G$14:$G$16) -> 0 | K13: =IF(J13="",0,(RANK(J13,$J$5:$J$14)))+COUNTIF(J$5:J13,J13)-1 -> 9 | L13: =SUMIF(Chine!$I$5:$I$14,Hollande!$I13,Chine!$L$5:$L$14)+$J$514 -> 0 | M13: =IF(L13="",0,(RANK(L13,$L$5:$L$14)))+COUNTIF(L$5:L13,L13)-1 -> 9
A14: PEREZ Sergio | B14: RACING POINT | I14: HAAS | J14: =SUM($G$26:$G$28) -> 0 | K14: =IF(J14="",0,(RANK(J14,$J$5:$J$14)))+COUNTIF(J$5:J14,J14)-1 -> 10 | L14: =SUMIF(Chine!$I$5:$I$14,Hollande!$I14,Chine!$L$5:$L$14)+$J$514 -> 0 | M14: =IF(L14="",0,(RANK(L14,$L$5:$L$14)))+COUNTIF(L$5:L14,L14)-1 -> 10
A15: STROLL Lance
A17: RUSSELL George | B17: WILLIAMS
A18: LATIFI Nichola | I18: ANNULÉ
A20: RICCIARDO Daniel | B20: RENAULT
A21: OCON Sebastian
A23: KVYAT Daniil | B23: ALPHA TAURI
A24: GASLY Pierre
A26: GROSJEAN Romain | B26: HAAS
A27: MAGNUSSEN Kevin
A29: NORRIS Lando | B29: McLAREN
A30: SAINZ.Jr Carlos
A32: RAÏKKÖNEN Kimi | B32: ALFA ROMEO
A33: GIOVINAZZI Antonio

Sheet Monaco
A1: BARCELONE - 28 SEPTEMBRE 2020
A3: PILOTES | B3: ECURIES | C3: VOITURES | D3: Finish | E3: Pôle | F3: Pt tour | G3: Points | I3: CLASSEMENT
I4: ÉCURIES | J4: POINTS | K4: RANG | L4: TOTAL | M4: PONCTUEL
A5: HAMILTON Lewis | B5: MERCEDES | G5: =IFERROR(CHOOSE(D5,25,18,15,12,10,8,6,4,2,1)+(F5=1),"") ->  | I5: RED BULL | J5: =SUM($G$11:$G$13) -> 0 | K5: =IF(J5="",0,(RANK(J5,$J$5:$J$14)))+COUNTIF(J$5:J5,J5)-1 -> 1 | L5: =SUMIF(Hollande!$I$5:$I$14,Monaco!$I5,Hollande!$L$5:$L$14)+$J$514 -> 0 | M5: =IF(L5="",0,(RANK(L5,$L$5:$L$14)))+COUNTIF(L$5:L5,L5)-1 -> 1
A6: BOTTAS Valtteri | G6: =IFERROR(CHOOSE(D6,25,18,15,12,10,8,6,4,2,1)+(F6=1),"") ->  | I6: ALFA ROMEO | J6: =SUM($G$32:$G$34) -> 0 | K6: =IF(J6="",0,(RANK(J6,$J$5:$J$14)))+COUNTIF(J$5:J6,J6)-1 -> 2 | L6: =SUMIF(Hollande!$I$5:$I$14,Monaco!$I6,Hollande!$L$5:$L$14)+$J$514 -> 0 | M6: =IF(L6="",0,(RANK(L6,$L$5:$L$14)))+COUNTIF(L$5:L6,L6)-1 -> 2
I7: Mc LAREN | J7: =SUM($G$29:$G$31) -> 0 | K7: =IF(J7="",0,(RANK(J7,$J$5:$J$14)))+COUNTIF(J$5:J7,J7)-1 -> 3 | L7: =SUMIF(Hollande!$I$5:$I$14,Monaco!$I7,Hollande!$L$5:$L$14)+$J$514 -> 0 | M7: =IF(L7="",0,(RANK(L7,$L$5:$L$14)))+COUNTIF(L$5:L7,L7)-1 -> 3
A8: VETTEL Sebastian | B8: FERRARI | I8: RENAULT | J8: =SUM($G$20:$G$22) -> 0 | K8: =IF(J8="",0,(RANK(J8,$J$5:$J$14)))+COUNTIF(J$5:J8,J8)-1 -> 4 | L8: =SUMIF(Hollande!$I$5:$I$14,Monaco!$I8,Hollande!$L$5:$L$14)+$J$514 -> 0 | M8: =IF(L8="",0,(RANK(L8,$L$5:$L$14)))+COUNTIF(L$5:L8,L8)-1 -> 4
A9: LECLERC Charles | I9: FERRARI | J9: =SUM($G$8:$G$10) -> 0 | K9: =IF(J9="",0,(RANK(J9,$J$5:$J$14)))+COUNTIF(J$5:J9,J9)-1 -> 5 | L9: =SUMIF(Hollande!$I$5:$I$14,Monaco!$I9,Hollande!$L$5:$L$14)+$J$514 -> 0 | M9: =IF(L9="",0,(RANK(L9,$L$5:$L$14)))+COUNTIF(L$5:L9,L9)-1 -> 5
I10: ALPHA TAURI | J10: =SUM($G$23:$G$25) -> 0 | K10: =IF(J10="",0,(RANK(J10,$J$5:$J$14)))+COUNTIF(J$5:J10,J10)-1 -> 6 | L10: =SUMIF(Hollande!$I$5:$I$14,Monaco!$I10,Hollande!$L$5:$L$14)+$J$514 -> 0 | M10: =IF(L10="",0,(RANK(L10,$L$5:$L$14)))+COUNTIF(L$5:L10,L10)-1 -> 6
A11: VERSTAPPEN Max | B11: RED BULL | I11: WILLIAMS | J11: =SUM($G$17:$G$19) -> 0 | K11: =IF(J11="",0,(RANK(J11,$J$5:$J$14)))+COUNTIF(J$5:J11,J11)-1 -> 7 | L11: =SUMIF(Hollande!$I$5:$I$14,Monaco!$I11,Hollande!$L$5:$L$14)+$J$514 -> 0 | M11: =IF(L11="",0,(RANK(L11,$L$5:$L$14)))+COUNTIF(L$5:L11,L11)-1 -> 7
A12: ALBON Alexander | I12: MERCEDES | J12: =SUM($G$5:$G$7) -> 0 | K12: =IF(J12="",0,(RANK(J12,$J$5:$J$14)))+COUNTIF(J$5:J12,J12)-1 -> 8 | L12: =SUMIF(Hollande!$I$5:$I$14,Monaco!$I12,Hollande!$L$5:$L$14)+$J$514 -> 0 | M12: =IF(L12="",0,(RANK(L12,$L$5:$L$14)))+COUNTIF(L$5:L12,L12)-1 -> 8
I13: RACING POINT | J13: =SUM($G$14:$G$16) -> 0 | K13: =IF(J13="",0,(RANK(J13,$J$5:$J$14)))+COUNTIF(J$5:J13,J13)-1 -> 9 | L13: =SUMIF(Hollande!$I$5:$I$14,Monaco!$I13,Hollande!$L$5:$L$14)+$J$514 -> 0 | M13: =IF(L13="",0,(RANK(L13,$L$5:$L$14)))+COUNTIF(L$5:L13,L13)-1 -> 9
A14: PEREZ Sergio | B14: RACING POINT | I14: HAAS | J14: =SUM($G$26:$G$28) -> 0 | K14: =IF(J14="",0,(RANK(J14,$J$5:$J$14)))+COUNTIF(J$5:J14,J14)-1 -> 10 | L14: =SUMIF(Hollande!$I$5:$I$14,Monaco!$I14,Hollande!$L$5:$L$14)+$J$514 -> 0 | M14: =IF(L14="",0,(RANK(L14,$L$5:$L$14)))+COUNTIF(L$5:L14,L14)-1 -> 10
A15: STROLL Lance
A17: RUSSELL George | B17: WILLIAMS
A18: LATIFI Nichola | I18: ANNULÉ
A20: RICCIARDO Daniel | B20: RENAULT
A21: OCON Sebastian
A23: KVYAT Daniil | B23: ALPHA TAURI
A24: GASLY Pierre
A26: GROSJEAN Romain | B26: HAAS
A27: MAGNUSSEN Kevin
A29: NORRIS Lando | B29: McLAREN
A30: SAINZ.Jr Carlos
A32: RAÏKKÖNEN Kimi | B32: ALFA ROMEO
A33: GIOVINAZZI Antonio

Sheet Azerbaïdjan
A1: BARCELONE - 28 SEPTEMBRE 2020
A3: PILOTES | B3: ECURIES | C3: VOITURES | D3: Finish | E3: Pôle | F3: Pt tour | G3: Points | I3: CLASSEMENT
I4: ÉCURIES | J4: POINTS | K4: RANG | L4: TOTAL | M4: PONCTUEL
A5: HAMILTON Lewis | B5: MERCEDES | G5: =IFERROR(CHOOSE(D5,25,18,15,12,10,8,6,4,2,1)+(F5=1),"") ->  | I5: RED BULL | J5: =SUM($G$11:$G$13) -> 0 | K5: =IF(J5="",0,(RANK(J5,$J$5:$J$14)))+COUNTIF(J$5:J5,J5)-1 -> 1 | L5: =SUMIF(Monaco!$I$5:$I$14,Azerbaïdjan!$I5,Monaco!$L$5:$L$14)+$J$514 -> 0 | M5: =IF(L5="",0,(RANK(L5,$L$5:$L$14)))+COUNTIF(L$5:L5,L5)-1 -> 1
A6: BOTTAS Valtteri | G6: =IFERROR(CHOOSE(D6,25,18,15,12,10,8,6,4,2,1)+(F6=1),"") ->  | I6: ALFA ROMEO | J6: =SUM($G$32:$G$34) -> 0 | K6: =IF(J6="",0,(RANK(J6,$J$5:$J$14)))+COUNTIF(J$5:J6,J6)-1 -> 2 | L6: =SUMIF(Monaco!$I$5:$I$14,Azerbaïdjan!$I6,Monaco!$L$5:$L$14)+$J$514 -> 0 | M6: =IF(L6="",0,(RANK(L6,$L$5:$L$14)))+COUNTIF(L$5:L6,L6)-1 -> 2
I7: Mc LAREN | J7: =SUM($G$29:$G$31) -> 0 | K7: =IF(J7="",0,(RANK(J7,$J$5:$J$14)))+COUNTIF(J$5:J7,J7)-1 -> 3 | L7: =SUMIF(Monaco!$I$5:$I$14,Azerbaïdjan!$I7,Monaco!$L$5:$L$14)+$J$514 -> 0 | M7: =IF(L7="",0,(RANK(L7,$L$5:$L$14)))+COUNTIF(L$5:L7,L7)-1 -> 3
A8: VETTEL Sebastian | B8: FERRARI | I8: RENAULT | J8: =SUM($G$20:$G$22) -> 0 | K8: =IF(J8="",0,(RANK(J8,$J$5:$J$14)))+COUNTIF(J$5:J8,J8)-1 -> 4 | L8: =SUMIF(Monaco!$I$5:$I$14,Azerbaïdjan!$I8,Monaco!$L$5:$L$14)+$J$514 -> 0 | M8: =IF(L8="",0,(RANK(L8,$L$5:$L$14)))+COUNTIF(L$5:L8,L8)-1 -> 4
A9: LECLERC Charles | I9: FERRARI | J9: =SUM($G$8:$G$10) -> 0 | K9: =IF(J9="",0,(RANK(J9,$J$5:$J$14)))+COUNTIF(J$5:J9,J9)-1 -> 5 | L9: =SUMIF(Monaco!$I$5:$I$14,Azerbaïdjan!$I9,Monaco!$L$5:$L$14)+$J$514 -> 0 | M9: =IF(L9="",0,(RANK(L9,$L$5:$L$14)))+COUNTIF(L$5:L9,L9)-1 -> 5
I10: ALPHA TAURI | J10: =SUM($G$23:$G$25) -> 0 | K10: =IF(J10="",0,(RANK(J10,$J$5:$J$14)))+COUNTIF(J$5:J10,J10)-1 -> 6 | L10: =SUMIF(Monaco!$I$5:$I$14,Azerbaïdjan!$I10,Monaco!$L$5:$L$14)+$J$514 -> 0 | M10: =IF(L10="",0,(RANK(L10,$L$5:$L$14)))+COUNTIF(L$5:L10,L10)-1 -> 6
A11: VERSTAPPEN Max | B11: RED BULL | I11: WILLIAMS | J11: =SUM($G$17:$G$19) -> 0 | K11: =IF(J11="",0,(RANK(J11,$J$5:$J$14)))+COUNTIF(J$5:J11,J11)-1 -> 7 | L11: =SUMIF(Monaco!$I$5:$I$14,Azerbaïdjan!$I11,Monaco!$L$5:$L$14)+$J$514 -> 0 | M11: =IF(L11="",0,(RANK(L11,$L$5:$L$14)))+COUNTIF(L$5:L11,L11)-1 -> 7
A12: ALBON Alexander | I12: MERCEDES | J12: =SUM($G$5:$G$7) -> 0 | K12: =IF(J12="",0,(RANK(J12,$J$5:$J$14)))+COUNTIF(J$5:J12,J12)-1 -> 8 | L12: =SUMIF(Monaco!$I$5:$I$14,Azerbaïdjan!$I12,Monaco!$L$5:$L$14)+$J$514 -> 0 | M12: =IF(L12="",0,(RANK(L12,$L$5:$L$14)))+COUNTIF(L$5:L12,L12)-1 -> 8
I13: RACING POINT | J13: =SUM($G$14:$G$16) -> 0 | K13: =IF(J13="",0,(RANK(J13,$J$5:$J$14)))+COUNTIF(J$5:J13,J13)-1 -> 9 | L13: =SUMIF(Monaco!$I$5:$I$14,Azerbaïdjan!$I13,Monaco!$L$5:$L$14)+$J$514 -> 0 | M13: =IF(L13="",0,(RANK(L13,$L$5:$L$14)))+COUNTIF(L$5:L13,L13)-1 -> 9
A14: PEREZ Sergio | B14: RACING POINT | I14: HAAS | J14: =SUM($G$26:$G$28) -> 0 | K14: =IF(J14="",0,(RANK(J14,$J$5:$J$14)))+COUNTIF(J$5:J14,J14)-1 -> 10 | L14: =SUMIF(Monaco!$I$5:$I$14,Azerbaïdjan!$I14,Monaco!$L$5:$L$14)+$J$514 -> 0 | M14: =IF(L14="",0,(RANK(L14,$L$5:$L$14)))+COUNTIF(L$5:L14,L14)-1 -> 10
A15: STROLL Lance
A17: RUSSELL George | B17: WILLIAMS
A18: LATIFI Nichola | I18: ANNULÉ
A20: RICCIARDO Daniel | B20: RENAULT
A21: OCON Sebastian
A23: KVYAT Daniil | B23: ALPHA TAURI
A24: GASLY Pierre
A26: GROSJEAN Romain | B26: HAAS
A27: MAGNUSSEN Kevin
A29: NORRIS Lando | B29: McLAREN
A30: SAINZ.Jr Carlos
A32: RAÏKKÖNEN Kimi | B32: ALFA ROMEO
A33: GIOVINAZZI Antonio

Sheet Canada
A1: CIRCUIT GILLES VILLENEUVE - 9 AOUT 2020
A3: PILOTES | B3: ECURIES | C3: VOITURES | D3: Finish | E3: Pôle | F3: Pt tour | G3: Points | I3: CLASSEMENT
I4: ÉCURIES | J4: POINTS | K4: RANG | L4: TOTAL | M4: PONCTUEL
A5: HAMILTON Lewis | B5: MERCEDES | G5: =IFERROR(CHOOSE(D5,25,18,15,12,10,8,6,4,2,1)+(F5=1),"") ->  | I5: RENAULT | J5: =SUM($G$20:$G$22) -> 0 | K5: =IF(J5="",0,(RANK(J5,$J$5:$J$14)))+COUNTIF(J$5:J5,J5)-1 -> 1 | L5: =SUMIF(Azerbaïdjan!$I$5:$I$14,Canada!$I5,Azerbaïdjan!$L$5:$L$14)+$J$514 -> 0 | M5: =IF(L5="",0,(RANK(L5,$L$5:$L$14)))+COUNTIF(L$5:L5,L5)-1 -> 1
A6: BOTTAS Valtteri | G6: =IFERROR(CHOOSE(D6,25,18,15,12,10,8,6,4,2,1)+(F6=1),"") ->  | I6: ALFA ROMEO | J6: =SUM($G$32:$G$34) -> 0 | K6: =IF(J6="",0,(RANK(J6,$J$5:$J$14)))+COUNTIF(J$5:J6,J6)-1 -> 2 | L6: =SUMIF(Azerbaïdjan!$I$5:$I$14,Canada!$I6,Azerbaïdjan!$L$5:$L$14)+$J$514 -> 0 | M6: =IF(L6="",0,(RANK(L6,$L$5:$L$14)))+COUNTIF(L$5:L6,L6)-1 -> 2
I7: Mc LAREN | J7: =SUM($G$29:$G$31) -> 0 | K7: =IF(J7="",0,(RANK(J7,$J$5:$J$14)))+COUNTIF(J$5:J7,J7)-1 -> 3 | L7: =SUMIF(Azerbaïdjan!$I$5:$I$14,Canada!$I7,Azerbaïdjan!$L$5:$L$14)+$J$514 -> 0 | M7: =IF(L7="",0,(RANK(L7,$L$5:$L$14)))+COUNTIF(L$5:L7,L7)-1 -> 3
A8: VETTEL Sebastian | B8: FERRARI | I8: RED BULL | J8: =SUM($G$11:$G$13) -> 0 | K8: =IF(J8="",0,(RANK(J8,$J$5:$J$14)))+COUNTIF(J$5:J8,J8)-1 -> 4 | L8: =SUMIF(Azerbaïdjan!$I$5:$I$14,Canada!$I8,Azerbaïdjan!$L$5:$L$14)+$J$514 -> 0 | M8: =IF(L8="",0,(RANK(L8,$L$5:$L$14)))+COUNTIF(L$5:L8,L8)-1 -> 4
A9: LECLERC Charles | I9: FERRARI | J9: =SUM($G$8:$G$10) -> 0 | K9: =IF(J9="",0,(RANK(J9,$J$5:$J$14)))+COUNTIF(J$5:J9,J9)-1 -> 5 | L9: =SUMIF(Azerbaïdjan!$I$5:$I$14,Canada!$I9,Azerbaïdjan!$L$5:$L$14)+$J$514 -> 0 | M9: =IF(L9="",0,(RANK(L9,$L$5:$L$14)))+COUNTIF(L$5:L9,L9)-1 -> 5
I10: ALPHA TAURI | J10: =SUM($G$23:$G$25) -> 0 | K10: =IF(J10="",0,(RANK(J10,$J$5:$J$14)))+COUNTIF(J$5:J10,J10)-1 -> 6 | L10: =SUMIF(Azerbaïdjan!$I$5:$I$14,Canada!$I10,Azerbaïdjan!$L$5:$L$14)+$J$514 -> 0 | M10: =IF(L10="",0,(RANK(L10,$L$5:$L$14)))+COUNTIF(L$5:L10,L10)-1 -> 6
A11: VERSTAPPEN Max | B11: RED BULL | I11: WILLIAMS | J11: =SUM($G$17:$G$19) -> 0 | K11: =IF(J11="",0,(RANK(J11,$J$5:$J$14)))+COUNTIF(J$5:J11,J11)-1 -> 7 | L11: =SUMIF(Azerbaïdjan!$I$5:$I$14,Canada!$I11,Azerbaïdjan!$L$5:$L$14)+$J$514 -> 0 | M11: =IF(L11="",0,(RANK(L11,$L$5:$L$14)))+COUNTIF(L$5:L11,L11)-1 -> 7
A12: ALBON Alexander | I12: MERCEDES | J12: =SUM($G$5:$G$7) -> 0 | K12: =IF(J12="",0,(RANK(J12,$J$5:$J$14)))+COUNTIF(J$5:J12,J12)-1 -> 8 | L12: =SUMIF(Azerbaïdjan!$I$5:$I$14,Canada!$I12,Azerbaïdjan!$L$5:$L$14)+$J$514 -> 0 | M12: =IF(L12="",0,(RANK(L12,$L$5:$L$14)))+COUNTIF(L$5:L12,L12)-1 -> 8
I13: RACING POINT | J13: =SUM($G$14:$G$16) -> 0 | K13: =IF(J13="",0,(RANK(J13,$J$5:$J$14)))+COUNTIF(J$5:J13,J13)-1 -> 9 | L13: =SUMIF(Azerbaïdjan!$I$5:$I$14,Canada!$I13,Azerbaïdjan!$L$5:$L$14)+$J$514 -> 0 | M13: =IF(L13="",0,(RANK(L13,$L$5:$L$14)))+COUNTIF(L$5:L13,L13)-1 -> 9
A14: PEREZ Sergio | B14: RACING POINT | I14: HAAS | J14: =SUM($G$26:$G$28) -> 0 | K14: =IF(J14="",0,(RANK(J14,$J$5:$J$14)))+COUNTIF(J$5:J14,J14)-1 -> 10 | L14: =SUMIF(Azerbaïdjan!$I$5:$I$14,Canada!$I14,Azerbaïdjan!$L$5:$L$14)+$J$514 -> 0 | M14: =IF(L14="",0,(RANK(L14,$L$5:$L$14)))+COUNTIF(L$5:L14,L14)-1 -> 10
A15: STROLL Lance
A17: RUSSELL George | B17: WILLIAMS
A18: LATIFI Nichola | I18: ANNULÉ
A20: RICCIARDO Daniel | B20: RENAULT
A21: OCON Sebastian
A23: KVYAT Daniil | B23: ALPHA TAURI
A24: GASLY Pierre
A26: GROSJEAN Romain | B26: HAAS
A27: MAGNUSSEN Kevin
A29: NORRIS Lando | B29: McLAREN
A30: SAINZ.Jr Carlos
A32: RAÏKKÖNEN Kimi | B32: ALFA ROMEO
A33: GIOVINAZZI Antonio

Sheet France
A1: BUGATTI - 11 OCTOBRE 2020
A3: PILOTES | B3: ECURIES | C3: VOITURES | D3: Finish | E3: Pôle | F3: Pt tour | G3: Points | I3: CLASSEMENT
I4: ÉCURIES | J4: POINTS | K4: RANG | L4: TOTAL | M4: PONCTUEL
A5: HAMILTON Lewis | B5: MERCEDES | G5: =IFERROR(CHOOSE(D5,25,18,15,12,10,8,6,4,2,1)+(F5=1),"") ->  | I5: RENAULT | J5: =SUM($G$20:$G$22) -> 0 | K5: =IF(J5="",0,(RANK(J5,$J$5:$J$14)))+COUNTIF(J$5:J5,J5)-1 -> 1 | L5: =SUMIF(Canada!$I$5:$I$14,France!$I5,Canada!$L$5:$L$14)+$J$514 -> 0 | M5: =IF(L5="",0,(RANK(L5,$L$5:$L$14)))+COUNTIF(L$5:L5,L5)-1 -> 1
A6: BOTTAS Valtteri | G6: =IFERROR(CHOOSE(D6,25,18,15,12,10,8,6,4,2,1)+(F6=1),"") ->  | I6: ALFA ROMEO | J6: =SUM($G$32:$G$34) -> 0 | K6: =IF(J6="",0,(RANK(J6,$J$5:$J$14)))+COUNTIF(J$5:J6,J6)-1 -> 2 | L6: =SUMIF(Canada!$I$5:$I$14,France!$I6,Canada!$L$5:$L$14)+$J$514 -> 0 | M6: =IF(L6="",0,(RANK(L6,$L$5:$L$14)))+COUNTIF(L$5:L6,L6)-1 -> 2
I7: Mc LAREN | J7: =SUM($G$29:$G$31) -> 0 | K7: =IF(J7="",0,(RANK(J7,$J$5:$J$14)))+COUNTIF(J$5:J7,J7)-1 -> 3 | L7: =SUMIF(Canada!$I$5:$I$14,France!$I7,Canada!$L$5:$L$14)+$J$514 -> 0 | M7: =IF(L7="",0,(RANK(L7,$L$5:$L$14)))+COUNTIF(L$5:L7,L7)-1 -> 3
A8: VETTEL Sebastian | B8: FERRARI | I8: RED BULL | J8: =SUM($G$11:$G$13) -> 0 | K8: =IF(J8="",0,(RANK(J8,$J$5:$J$14)))+COUNTIF(J$5:J8,J8)-1 -> 4 | L8: =SUMIF(Canada!$I$5:$I$14,France!$I8,Canada!$L$5:$L$14)+$J$514 -> 0 | M8: =IF(L8="",0,(RANK(L8,$L$5:$L$14)))+COUNTIF(L$5:L8,L8)-1 -> 4
A9: LECLERC Charles | I9: FERRARI | J9: =SUM($G$8:$G$10) -> 0 | K9: =IF(J9="",0,(RANK(J9,$J$5:$J$14)))+COUNTIF(J$5:J9,J9)-1 -> 5 | L9: =SUMIF(Canada!$I$5:$I$14,France!$I9,Canada!$L$5:$L$14)+$J$514 -> 0 | M9: =IF(L9="",0,(RANK(L9,$L$5:$L$14)))+COUNTIF(L$5:L9,L9)-1 -> 5
I10: ALPHA TAURI | J10: =SUM($G$23:$G$25) -> 0 | K10: =IF(J10="",0,(RANK(J10,$J$5:$J$14)))+COUNTIF(J$5:J10,J10)-1 -> 6 | L10: =SUMIF(Canada!$I$5:$I$14,France!$I10,Canada!$L$5:$L$14)+$J$514 -> 0 | M10: =IF(L10="",0,(RANK(L10,$L$5:$L$14)))+COUNTIF(L$5:L10,L10)-1 -> 6
A11: VERSTAPPEN Max | B11: RED BULL | I11: WILLIAMS | J11: =SUM($G$17:$G$19) -> 0 | K11: =IF(J11="",0,(RANK(J11,$J$5:$J$14)))+COUNTIF(J$5:J11,J11)-1 -> 7 | L11: =SUMIF(Canada!$I$5:$I$14,France!$I11,Canada!$L$5:$L$14)+$J$514 -> 0 | M11: =IF(L11="",0,(RANK(L11,$L$5:$L$14)))+COUNTIF(L$5:L11,L11)-1 -> 7
A12: ALBON Alexander | I12: MERCEDES | J12: =SUM($G$5:$G$7) -> 0 | K12: =IF(J12="",0,(RANK(J12,$J$5:$J$14)))+COUNTIF(J$5:J12,J12)-1 -> 8 | L12: =SUMIF(Canada!$I$5:$I$14,France!$I12,Canada!$L$5:$L$14)+$J$514 -> 0 | M12: =IF(L12="",0,(RANK(L12,$L$5:$L$14)))+COUNTIF(L$5:L12,L12)-1 -> 8
I13: RACING POINT | J13: =SUM($G$14:$G$16) -> 0 | K13: =IF(J13="",0,(RANK(J13,$J$5:$J$14)))+COUNTIF(J$5:J13,J13)-1 -> 9 | L13: =SUMIF(Canada!$I$5:$I$14,France!$I13,Canada!$L$5:$L$14)+$J$514 -> 0 | M13: =IF(L13="",0,(RANK(L13,$L$5:$L$14)))+COUNTIF(L$5:L13,L13)-1 -> 9
A14: PEREZ Sergio | B14: RACING POINT | I14: HAAS | J14: =SUM($G$26:$G$28) -> 0 | K14: =IF(J14="",0,(RANK(J14,$J$5:$J$14)))+COUNTIF(J$5:J14,J14)-1 -> 10 | L14: =SUMIF(Canada!$I$5:$I$14,France!$I14,Canada!$L$5:$L$14)+$J$514 -> 0 | M14: =IF(L14="",0,(RANK(L14,$L$5:$L$14)))+COUNTIF(L$5:L14,L14)-1 -> 10
A15: STROLL Lance
A17: RUSSELL George | B17: WILLIAMS
A18: LATIFI Nichola | I18: ANNULÉ
A20: RICCIARDO Daniel | B20: RENAULT
A21: OCON Sebastian
A23: KVYAT Daniil | B23: ALPHA TAURI
A24: GASLY Pierre
A26: GROSJEAN Romain | B26: HAAS
A27: MAGNUSSEN Kevin
A29: NORRIS Lando | B29: McLAREN
A30: SAINZ.Jr Carlos
A32: RAÏKKÖNEN Kimi | B32: ALFA ROMEO
A33: GIOVINAZZI Antonio

Sheet Autriche
A1: SPIELBERG - 16 AOUT 2020
A3: PILOTES | B3: ECURIES | C3: VOITURES | D3: Finish | E3: Pôle | F3: Pt tour | G3: Points | I3: CLASSEMENT
I4: ÉCURIES | J4: POINTS | K4: RANG | L4: TOTAL | M4: PONCTUEL
A5: HAMILTON Lewis | B5: MERCEDES | D5: 4 | G5: =IFERROR(CHOOSE(D5,25,18,15,12,10,8,6,4,2,1)+(F5=1),"") -> 12 | I5: MERCEDES | J5: =SUM($G$5:$G$7) -> 37 | K5: =IF(J5="",0,(RANK(J5,$J$5:$J$14)))+COUNTIF(J$5:J5,J5)-1 -> 1 | L5: =SUMIF(France!$I$5:$I$14,Autriche!$I5,France!$L$5:$L$14)+$J5 -> 37 | M5: =IF(L5="",0,(RANK(L5,$L$5:$L$14)))+COUNTIF(L$5:L5,L5)-1 -> 1
A6: BOTTAS Valtteri | D6: 1 | G6: =IFERROR(CHOOSE(D6,25,18,15,12,10,8,6,4,2,1)+(F6=1),"") -> 25 | I6: Mc LAREN | J6: =SUM($G$29:$G$31) -> 26 | K6: =IF(J6="",0,(RANK(J6,$J$5:$J$14)))+COUNTIF(J$5:J6,J6)-1 -> 2 | L6: =SUMIF(France!$I$5:$I$14,Autriche!$I6,France!$L$5:$L$14)+$J6 -> 26 | M6: =IF(L6="",0,(RANK(L6,$L$5:$L$14)))+COUNTIF(L$5:L6,L6)-1 -> 2
I7: FERRARI | J7: =SUM($G$8:$G$10) -> 19 | K7: =IF(J7="",0,(RANK(J7,$J$5:$J$14)))+COUNTIF(J$5:J7,J7)-1 -> 3 | L7: =SUMIF(France!$I$5:$I$14,Autriche!$I7,France!$L$5:$L$14)+$J7 -> 19 | M7: =IF(L7="",0,(RANK(L7,$L$5:$L$14)))+COUNTIF(L$5:L7,L7)-1 -> 3
A8: VETTEL Sebastian | B8: FERRARI | D8: 10 | G8: 1 | I8: RACING POINT | J8: =SUM($G$14:$G$16) -> 8 | K8: =IF(J8="",0,(RANK(J8,$J$5:$J$14)))+COUNTIF(J$5:J8,J8)-1 -> 4 | L8: =SUMIF(France!$I$5:$I$14,Autriche!$I8,France!$L$5:$L$14)+$J8 -> 8 | M8: =IF(L8="",0,(RANK(L8,$L$5:$L$14)))+COUNTIF(L$5:L8,L8)-1 -> 4
A9: LECLERC Charles | D9: 2 | G9: 18 | I9: ALPHA TAURI | J9: =SUM($G$23:$G$25) -> 6 | K9: =IF(J9="",0,(RANK(J9,$J$5:$J$14)))+COUNTIF(J$5:J9,J9)-1 -> 5 | L9: =SUMIF(France!$I$5:$I$14,Autriche!$I9,France!$L$5:$L$14)+$J9 -> 6 | M9: =IF(L9="",0,(RANK(L9,$L$5:$L$14)))+COUNTIF(L$5:L9,L9)-1 -> 5
I10: RENAULT | J10: =SUM($G$20:$G$22) -> 4 | K10: =IF(J10="",0,(RANK(J10,$J$5:$J$14)))+COUNTIF(J$5:J10,J10)-1 -> 6 | L10: =SUMIF(France!$I$5:$I$14,Autriche!$I10,France!$L$5:$L$14)+$J10 -> 4 | M10: =IF(L10="",0,(RANK(L10,$L$5:$L$14)))+COUNTIF(L$5:L10,L10)-1 -> 6
A11: VERSTAPPEN Max | B11: RED BULL | D11: OUT | I11: ALFA ROMEO | J11: =SUM($G$32:$G$34) -> 2 | K11: =IF(J11="",0,(RANK(J11,$J$5:$J$14)))+COUNTIF(J$5:J11,J11)-1 -> 7 | L11: =SUMIF(France!$I$5:$I$14,Autriche!$I11,France!$L$5:$L$14)+$J11 -> 2 | M11: =IF(L11="",0,(RANK(L11,$L$5:$L$14)))+COUNTIF(L$5:L11,L11)-1 -> 7
A12: ALBON Alexander | D12: 13 | I12: RED BULL | J12: =SUM($G$11:$G$13) -> 0 | K12: =IF(J12="",0,(RANK(J12,$J$5:$J$14)))+COUNTIF(J$5:J12,J12)-1 -> 8 | L12: =SUMIF(France!$I$5:$I$14,Autriche!$I12,France!$L$5:$L$14)+$J12 -> 0 | M12: =IF(L12="",0,(RANK(L12,$L$5:$L$14)))+COUNTIF(L$5:L12,L12)-1 -> 8
I13: WILLIAMS | J13: =SUM($G$17:$G$19) -> 0 | K13: =IF(J13="",0,(RANK(J13,$J$5:$J$14)))+COUNTIF(J$5:J13,J13)-1 -> 9 | L13: =SUMIF(France!$I$5:$I$14,Autriche!$I13,France!$L$5:$L$14)+$J13 -> 0 | M13: =IF(L13="",0,(RANK(L13,$L$5:$L$14)))+COUNTIF(L$5:L13,L13)-1 -> 9
A14: PEREZ Sergio | B14: RACING POINT | D14: 6 | G14: 8 | I14: HAAS | J14: =SUM($G$26:$G$28) -> 0 | K14: =IF(J14="",0,(RANK(J14,$J$5:$J$14)))+COUNTIF(J$5:J14,J14)-1 -> 10 | L14: =SUMIF(France!$I$5:$I$14,Autriche!$I14,France!$L$5:$L$14)+$J14 -> 0 | M14: =IF(L14="",0,(RANK(L14,$L$5:$L$14)))+COUNTIF(L$5:L14,L14)-1 -> 10
A15: STROLL Lance | D15: OUT
A17: RUSSELL George | B17: WILLIAMS | D17: OUT
A18: LATIFI Nichola | D18: 11
A20: RICCIARDO Daniel | B20: RENAULT | D20: OUT
A21: OCON Sebastian | D21: 8 | G21: 4
A23: KVYAT Daniil | B23: ALPHA TAURI | D23: 12
A24: GASLY Pierre | D24: 7 | G24: 6
A26: GROSJEAN Romain | B26: HAAS | D26: OUT
A27: MAGNUSSEN Kevin | D27: OUT
A29: NORRIS Lando | B29: McLAREN | D29: 3 | F29: 1 | G29: 16
A30: SAINZ.Jr Carlos | D30: 5 | G30: 10
A32: RAÏKKÖNEN Kimi | B32: ALFA ROMEO | D32: OUT
A33: GIOVINAZZI Antonio | D33: 9 | G33: 2

Sheet Autriche2
A1: SPIELBERG - 12 JUILLET 2020
A3: PILOTES | B3: ECURIES | C3: VOITURES | D3: Finish | E3: Pôle | F3: Pt tour | G3: Points | I3: CLASSEMENT
I4: ÉCURIES | J4: POINTS | K4: RANG | L4: TOTAL | M4: PONCTUEL
A5: HAMILTON Lewis | B5: MERCEDES | D5: 1 | E5: 1 | G5: =IFERROR(CHOOSE(D5,25,18,15,12,10,8,6,4,2,1)+(F5=1),"") -> 25 | I5: MERCEDES | J5: =SUM($G$5:$G$7) -> 43 | K5: =IF(J5="",0,(RANK(J5,$J$5:$J$14)))+COUNTIF(J$5:J5,J5)-1 -> 1 | L5: =SUMIF(Autriche!$I$5:$I$14,Autriche2!$I5,Autriche!$L$5:$L$14)+$J5 -> 80 | M5: =IF(L5="",0,(RANK(L5,$L$5:$L$14)))+COUNTIF(L$5:L5,L5)-1 -> 1
A6: BOTTAS Valtteri | D6: 2 | G6: =IFERROR(CHOOSE(D6,25,18,15,12,10,8,6,4,2,1)+(F6=1),"") -> 18 | I6: RED BULL | J6: =SUM($G$11:$G$13) -> 27 | K6: =IF(J6="",0,(RANK(J6,$J$5:$J$14)))+COUNTIF(J$5:J6,J6)-1 -> 2 | L6: =SUMIF(Autriche!$I$5:$I$14,Autriche2!$I6,Autriche!$L$5:$L$14)+$J6 -> 27 | M6: =IF(L6="",0,(RANK(L6,$L$5:$L$14)))+COUNTIF(L$5:L6,L6)-1 -> 3
I7: RACING POINT | J7: =SUM($G$14:$G$16) -> 14 | K7: =IF(J7="",0,(RANK(J7,$J$5:$J$14)))+COUNTIF(J$5:J7,J7)-1 -> 3 | L7: =SUMIF(Autriche!$I$5:$I$14,Autriche2!$I7,Autriche!$L$5:$L$14)+$J7 -> 22 | M7: =IF(L7="",0,(RANK(L7,$L$5:$L$14)))+COUNTIF(L$5:L7,L7)-1 -> 4
A8: VETTEL Sebastian | B8: FERRARI | D8: OUT | I8: Mc LAREN | J8: =SUM($G$29:$G$31) -> 13 | K8: =IF(J8="",0,(RANK(J8,$J$5:$J$14)))+COUNTIF(J$5:J8,J8)-1 -> 4 | L8: =SUMIF(Autriche!$I$5:$I$14,Autriche2!$I8,Autriche!$L$5:$L$14)+$J8 -> 39 | M8: =IF(L8="",0,(RANK(L8,$L$5:$L$14)))+COUNTIF(L$5:L8,L8)-1 -> 2
A9: LECLERC Charles | D9: OUT | I9: RENAULT | J9: =SUM($G$20:$G$22) -> 4 | K9: =IF(J9="",0,(RANK(J9,$J$5:$J$14)))+COUNTIF(J$5:J9,J9)-1 -> 5 | L9: =SUMIF(Autriche!$I$5:$I$14,Autriche2!$I9,Autriche!$L$5:$L$14)+$J9 -> 8 | M9: =IF(L9="",0,(RANK(L9,$L$5:$L$14)))+COUNTIF(L$5:L9,L9)-1 -> 6
I10: ALPHA TAURI | J10: =SUM($G$23:$G$25) -> 1 | K10: =IF(J10="",0,(RANK(J10,$J$5:$J$14)))+COUNTIF(J$5:J10,J10)-1 -> 6 | L10: =SUMIF(Autriche!$I$5:$I$14,Autriche2!$I10,Autriche!$L$5:$L$14)+$J10 -> 7 | M10: =IF(L10="",0,(RANK(L10,$L$5:$L$14)))+COUNTIF(L$5:L10,L10)-1 -> 7
A11: VERSTAPPEN Max | B11: RED BULL | D11: 3 | G11: 15 | I11: FERRARI | J11: =SUM($G$8:$G$10) -> 0 | K11: =IF(J11="",0,(RANK(J11,$J$5:$J$14)))+COUNTIF(J$5:J11,J11)-1 -> 7 | L11: =SUMIF(Autriche!$I$5:$I$14,Autriche2!$I11,Autriche!$L$5:$L$14)+$J11 -> 19 | M11: =IF(L11="",0,(RANK(L11,$L$5:$L$14)))+COUNTIF(L$5:L11,L11)-1 -> 5
A12: ALBON Alexander | D12: 4 | G12: 12 | I12: HAAS | J12: =SUM($G$26:$G$28) -> 0 | K12: =IF(J12="",0,(RANK(J12,$J$5:$J$14)))+COUNTIF(J$5:J12,J12)-1 -> 8 | L12: =SUMIF(Autriche!$I$5:$I$14,Autriche2!$I12,Autriche!$L$5:$L$14)+$J12 -> 0 | M12: =IF(L12="",0,(RANK(L12,$L$5:$L$14)))+COUNTIF(L$5:L12,L12)-1 -> 9
I13: WILLIAMS | J13: =SUM($G$17:$G$19) -> 0 | K13: =IF(J13="",0,(RANK(J13,$J$5:$J$14)))+COUNTIF(J$5:J13,J13)-1 -> 9 | L13: =SUMIF(Autriche!$I$5:$I$14,Autriche2!$I13,Autriche!$L$5:$L$14)+$J13 -> 0 | M13: =IF(L13="",0,(RANK(L13,$L$5:$L$14)))+COUNTIF(L$5:L13,L13)-1 -> 10
A14: PEREZ Sergio | B14: RACING POINT | D14: 6 | G14: 8 | I14: ALFA ROMEO | J14: =SUM($G$32:$G$34) -> 0 | K14: =IF(J14="",0,(RANK(J14,$J$5:$J$14)))+COUNTIF(J$5:J14,J14)-1 -> 10 | L14: =SUMIF(Autriche!$I$5:$I$14,Autriche2!$I14,Autriche!$L$5:$L$14)+$J14 -> 2 | M14: =IF(L14="",0,(RANK(L14,$L$5:$L$14)))+COUNTIF(L$5:L14,L14)-1 -> 8
A15: STROLL Lance | D15: 7 | G15: 6
A17: RUSSELL George | B17: WILLIAMS | D17: 16
A18: LATIFI Nichola | D18: 17
A20: RICCIARDO Daniel | B20: RENAULT | D20: 8 | G20: 4
A21: OCON Sebastian | D21: OUT
A23: KVYAT Daniil | B23: ALPHA TAURI | D23: 10 | G23: 1
A24: GASLY Pierre | D24: 15
A26: GROSJEAN Romain | B26: HAAS | D26: 13
A27: MAGNUSSEN Kevin | D27: 12
A29: NORRIS Lando | B29: McLAREN | D29: 5 | G29: 10
A30: SAINZ.Jr Carlos | D30: 9 | F30: 1 | G30: 3
A32: RAÏKKÖNEN Kimi | B32: ALFA ROMEO | D32: 11
A33: GIOVINAZZI Antonio | D33: 14

Sheet Hongrie
A1: HUNGARORING - 19 JUILLET 2020
A3: PILOTES | B3: ECURIES | C3: VOITURES | D3: Finish | E3: Pôle | F3: Pt tour | G3: Points | I3: CLASSEMENT
I4: ÉCURIES | J4: POINTS | K4: RANG | L4: TOTAL | M4: PONCTUEL
A5: HAMILTON Lewis | B5: MERCEDES | D5: 1 | E5: 1 | F5: 1 | G5: =IFERROR(CHOOSE(D5,25,18,15,12,10,8,6,4,2,1)+(F5=1),"") -> 26 | I5: MERCEDES | J5: =SUM($G$5:$G$7) -> 41 | K5: =IF(J5="",0,(RANK(J5,$J$5:$J$14)))+COUNTIF(J$5:J5,J5)-1 -> 1 | L5: =SUMIF(Autriche2!$I$5:$I$14,Hongrie!$I5,Autriche2!$L$5:$L$14)+$J5 -> 121 | M5: =IF(L5="",0,(RANK(L5,$L$5:$L$14)))+COUNTIF(L$5:L5,L5)-1 -> 1
A6: BOTTAS Valtteri | D6: 3 | G6: =IFERROR(CHOOSE(D6,25,18,15,12,10,8,6,4,2,1)+(F6=1),"") -> 15 | I6: RED BULL | J6: =SUM($G$11:$G$13) -> 28 | K6: =IF(J6="",0,(RANK(J6,$J$5:$J$14)))+COUNTIF(J$5:J6,J6)-1 -> 2 | L6: =SUMIF(Autriche2!$I$5:$I$14,Hongrie!$I6,Autriche2!$L$5:$L$14)+$J6 -> 55 | M6: =IF(L6="",0,(RANK(L6,$L$5:$L$14)))+COUNTIF(L$5:L6,L6)-1 -> 2
I7: RACING POINT | J7: =SUM($G$14:$G$16) -> 18 | K7: =IF(J7="",0,(RANK(J7,$J$5:$J$14)))+COUNTIF(J$5:J7,J7)-1 -> 3 | L7: =SUMIF(Autriche2!$I$5:$I$14,Hongrie!$I7,Autriche2!$L$5:$L$14)+$J7 -> 40 | M7: =IF(L7="",0,(RANK(L7,$L$5:$L$14)))+COUNTIF(L$5:L7,L7)-1 -> 4
A8: VETTEL Sebastian | B8: FERRARI | D8: 6 | G8: 8 | I8: FERRARI | J8: =SUM($G$8:$G$10) -> 8 | K8: =IF(J8="",0,(RANK(J8,$J$5:$J$14)))+COUNTIF(J$5:J8,J8)-1 -> 4 | L8: =SUMIF(Autriche2!$I$5:$I$14,Hongrie!$I8,Autriche2!$L$5:$L$14)+$J8 -> 27 | M8: =IF(L8="",0,(RANK(L8,$L$5:$L$14)))+COUNTIF(L$5:L8,L8)-1 -> 5
A9: LECLERC Charles | D9: 11 | I9: RENAULT | J9: =SUM($G$20:$G$22) -> 4 | K9: =IF(J9="",0,(RANK(J9,$J$5:$J$14)))+COUNTIF(J$5:J9,J9)-1 -> 5 | L9: =SUMIF(Autriche2!$I$5:$I$14,Hongrie!$I9,Autriche2!$L$5:$L$14)+$J9 -> 12 | M9: =IF(L9="",0,(RANK(L9,$L$5:$L$14)))+COUNTIF(L$5:L9,L9)-1 -> 6
I10: Mc LAREN | J10: =SUM($G$29:$G$31) -> 2 | K10: =IF(J10="",0,(RANK(J10,$J$5:$J$14)))+COUNTIF(J$5:J10,J10)-1 -> 6 | L10: =SUMIF(Autriche2!$I$5:$I$14,Hongrie!$I10,Autriche2!$L$5:$L$14)+$J10 -> 41 | M10: =IF(L10="",0,(RANK(L10,$L$5:$L$14)))+COUNTIF(L$5:L10,L10)-1 -> 3
A11: VERSTAPPEN Max | B11: RED BULL | D11: 2 | G11: 18 | I11: HAAS | J11: =SUM($G$26:$G$28) -> 1 | K11: =IF(J11="",0,(RANK(J11,$J$5:$J$14)))+COUNTIF(J$5:J11,J11)-1 -> 7 | L11: =SUMIF(Autriche2!$I$5:$I$14,Hongrie!$I11,Autriche2!$L$5:$L$14)+$J11 -> 1 | M11: =IF(L11="",0,(RANK(L11,$L$5:$L$14)))+COUNTIF(L$5:L11,L11)-1 -> 9
A12: ALBON Alexander | D12: 5 | G12: 10 | I12: ALPHA TAURI | J12: =SUM($G$23:$G$25) -> 0 | K12: =IF(J12="",0,(RANK(J12,$J$5:$J$14)))+COUNTIF(J$5:J12,J12)-1 -> 8 | L12: =SUMIF(Autriche2!$I$5:$I$14,Hongrie!$I12,Autriche2!$L$5:$L$14)+$J12 -> 7 | M12: =IF(L12="",0,(RANK(L12,$L$5:$L$14)))+COUNTIF(L$5:L12,L12)-1 -> 7
I13: WILLIAMS | J13: =SUM($G$17:$G$19) -> 0 | K13: =IF(J13="",0,(RANK(J13,$J$5:$J$14)))+COUNTIF(J$5:J13,J13)-1 -> 9 | L13: =SUMIF(Autriche2!$I$5:$I$14,Hongrie!$I13,Autriche2!$L$5:$L$14)+$J13 -> 0 | M13: =IF(L13="",0,(RANK(L13,$L$5:$L$14)))+COUNTIF(L$5:L13,L13)-1 -> 10
A14: PEREZ Sergio | B14: RACING POINT | D14: 7 | G14: 6 | I14: ALFA ROMEO | J14: =SUM($G$32:$G$34) -> 0 | K14: =IF(J14="",0,(RANK(J14,$J$5:$J$14)))+COUNTIF(J$5:J14,J14)-1 -> 10 | L14: =SUMIF(Autriche2!$I$5:$I$14,Hongrie!$I14,Autriche2!$L$5:$L$14)+$J14 -> 2 | M14: =IF(L14="",0,(RANK(L14,$L$5:$L$14)))+COUNTIF(L$5:L14,L14)-1 -> 8
A15: STROLL Lance | D15: 4 | G15: 12
A17: RUSSELL George | B17: WILLIAMS | D17: 18
A18: LATIFI Nichola | D18: 19
A20: RICCIARDO Daniel | B20: RENAULT | D20: 8 | G20: 4
A21: OCON Sebastian | D21: 14
A23: KVYAT Daniil | B23: ALPHA TAURI | D23: 12
A24: GASLY Pierre | D24: OUT
A26: GROSJEAN Romain | B26: HAAS | D26: 16
A27: MAGNUSSEN Kevin | D27: 10 | G27: 1
A29: NORRIS Lando | B29: McLAREN | D29: 13
A30: SAINZ.Jr Carlos | D30: 9 | G30: 2
A32: RAÏKKÖNEN Kimi | B32: ALFA ROMEO | D32: 15
A33: GIOVINAZZI Antonio | D33: 17

Sheet GB
A1: SILVERSTONE - 19 JUILLET 2020
A3: PILOTES | B3: ECURIES | C3: VOITURES | D3: Finish | E3: Pôle | F3: Pt tour | G3: Points | I3: CLASSEMENT
I4: ÉCURIES | J4: POINTS | K4: RANG | L4: TOTAL | M4: PONCTUEL
A5: HAMILTON Lewis | B5: MERCEDES | D5: 1 | E5: 1 | G5: =IFERROR(CHOOSE(D5,25,18,15,12,10,8,6,4,2,1)+(F5=1),"") -> 25 | I5: MERCEDES | J5: =SUM($G$5:$G$7) -> 25 | K5: =IF(J5="",0,(RANK(J5,$J$5:$J$14)))+COUNTIF(J$5:J5,J5)-1 -> 1 | L5: =SUMIF(Hongrie!$I$5:$I$14,GB!$I5,Hongrie!$L$5:$L$14)+$J5 -> 146 | M5: =IF(L5="",0,(RANK(L5,$L$5:$L$14)))+COUNTIF(L$5:L5,L5)-1 -> 1
A6: BOTTAS Valtteri | D6: 11 | G6: =IFERROR(CHOOSE(D6,25,18,15,12,10,8,6,4,2,1)+(F6=1),"") ->  | I6: RED BULL | J6: =SUM($G$11:$G$13) -> 23 | K6: =IF(J6="",0,(RANK(J6,$J$5:$J$14)))+COUNTIF(J$5:J6,J6)-1 -> 2 | L6: =SUMIF(Hongrie!$I$5:$I$14,GB!$I6,Hongrie!$L$5:$L$14)+$J6 -> 78 | M6: =IF(L6="",0,(RANK(L6,$L$5:$L$14)))+COUNTIF(L$5:L6,L6)-1 -> 2
I7: RENAULT | J7: =SUM($G$20:$G$22) -> 20 | K7: =IF(J7="",0,(RANK(J7,$J$5:$J$14)))+COUNTIF(J$5:J7,J7)-1 -> 3 | L7: =SUMIF(Hongrie!$I$5:$I$14,GB!$I7,Hongrie!$L$5:$L$14)+$J7 -> 32 | M7: =IF(L7="",0,(RANK(L7,$L$5:$L$14)))+COUNTIF(L$5:L7,L7)-1 -> 6
A8: VETTEL Sebastian | B8: FERRARI | D8: 10 | G8: 1 | I8: FERRARI | J8: =SUM($G$8:$G$10) -> 16 | K8: =IF(J8="",0,(RANK(J8,$J$5:$J$14)))+COUNTIF(J$5:J8,J8)-1 -> 4 | L8: =SUMIF(Hongrie!$I$5:$I$14,GB!$I8,Hongrie!$L$5:$L$14)+$J8 -> 43 | M8: =IF(L8="",0,(RANK(L8,$L$5:$L$14)))+COUNTIF(L$5:L8,L8)-1 -> 4
A9: LECLERC Charles | D9: 3 | G9: 15 | I9: Mc LAREN | J9: =SUM($G$29:$G$31) -> 10 | K9: =IF(J9="",0,(RANK(J9,$J$5:$J$14)))+COUNTIF(J$5:J9,J9)-1 -> 5 | L9: =SUMIF(Hongrie!$I$5:$I$14,GB!$I9,Hongrie!$L$5:$L$14)+$J9 -> 51 | M9: =IF(L9="",0,(RANK(L9,$L$5:$L$14)))+COUNTIF(L$5:L9,L9)-1 -> 3
I10: ALPHA TAURI | J10: =SUM($G$23:$G$25) -> 6 | K10: =IF(J10="",0,(RANK(J10,$J$5:$J$14)))+COUNTIF(J$5:J10,J10)-1 -> 6 | L10: =SUMIF(Hongrie!$I$5:$I$14,GB!$I10,Hongrie!$L$5:$L$14)+$J10 -> 13 | M10: =IF(L10="",0,(RANK(L10,$L$5:$L$14)))+COUNTIF(L$5:L10,L10)-1 -> 7
A11: VERSTAPPEN Max | B11: RED BULL | D11: 2 | F11: 1 | G11: 19 | I11: RACING POINT | J11: =SUM($G$14:$G$16) -> 2 | K11: =IF(J11="",0,(RANK(J11,$J$5:$J$14)))+COUNTIF(J$5:J11,J11)-1 -> 7 | L11: =SUMIF(Hongrie!$I$5:$I$14,GB!$I11,Hongrie!$L$5:$L$14)+$J11 -> 42 | M11: =IF(L11="",0,(RANK(L11,$L$5:$L$14)))+COUNTIF(L$5:L11,L11)-1 -> 5
A12: ALBON Alexander | D12: 8 | G12: 4 | I12: HAAS | J12: =SUM($G$26:$G$28) -> 0 | K12: =IF(J12="",0,(RANK(J12,$J$5:$J$14)))+COUNTIF(J$5:J12,J12)-1 -> 8 | L12: =SUMIF(Hongrie!$I$5:$I$14,GB!$I12,Hongrie!$L$5:$L$14)+$J12 -> 1 | M12: =IF(L12="",0,(RANK(L12,$L$5:$L$14)))+COUNTIF(L$5:L12,L12)-1 -> 9
I13: WILLIAMS | J13: =SUM($G$17:$G$19) -> 0 | K13: =IF(J13="",0,(RANK(J13,$J$5:$J$14)))+COUNTIF(J$5:J13,J13)-1 -> 9 | L13: =SUMIF(Hongrie!$I$5:$I$14,GB!$I13,Hongrie!$L$5:$L$14)+$J13 -> 0 | M13: =IF(L13="",0,(RANK(L13,$L$5:$L$14)))+COUNTIF(L$5:L13,L13)-1 -> 10
A14: PEREZ Sergio | B14: RACING POINT | D14: NC | I14: ALFA ROMEO | J14: =SUM($G$32:$G$34) -> 0 | K14: =IF(J14="",0,(RANK(J14,$J$5:$J$14)))+COUNTIF(J$5:J14,J14)-1 -> 10 | L14: =SUMIF(Hongrie!$I$5:$I$14,GB!$I14,Hongrie!$L$5:$L$14)+$J14 -> 2 | M14: =IF(L14="",0,(RANK(L14,$L$5:$L$14)))+COUNTIF(L$5:L14,L14)-1 -> 8
A15: STROLL Lance | D15: 9 | G15: 2
A16: HULKENBERG Nico | D16: OUT
A17: RUSSELL George | B17: WILLIAMS | D17: 12
A18: LATIFI Nichola | D18: 15
A20: RICCIARDO Daniel | B20: RENAULT | D20: 4 | G20: 12
A21: OCON Sebastian | D21: 6 | G21: 8
A23: KVYAT Daniil | B23: ALPHA TAURI | D23: OUT
A24: GASLY Pierre | D24: 7 | G24: 6
A26: GROSJEAN Romain | B26: HAAS | D26: 16
A27: MAGNUSSEN Kevin | D27: OUT
A29: NORRIS Lando | B29: McLAREN | D29: 5 | G29: 10
A30: SAINZ.Jr Carlos | D30: 13
A32: RAÏKKÖNEN Kimi | B32: ALFA ROMEO | D32: 17
A33: GIOVINAZZI Antonio | D33: 14

Sheet GrB
A1: SILVERSTONE - 9 AOUT 2020
A3: PILOTES | B3: ECURIES | C3: VOITURES | D3: Finish | E3: Pôle | F3: Pt tour | G3: Points | I3: CLASSEMENT
I4: ÉCURIES | J4: POINTS | K4: RANG | L4: TOTAL | M4: PONCTUEL
A5: HAMILTON Lewis | B5: MERCEDES | D5: 2 | F5: 1 | G5: =IFERROR(CHOOSE(D5,25,18,15,12,10,8,6,4,2,1)+(F5=1),"") -> 19 | I5: RED BULL | J5: =SUM($G$11:$G$13) -> 35 | K5: =IF(J5="",0,(RANK(J5,$J$5:$J$14)))+COUNTIF(J$5:J5,J5)-1 -> 1 | L5: =SUMIF(GB!$I$5:$I$14,GrB!$I5,GB!$L$5:$L$14)+$J5 -> 113 | M5: =IF(L5="",0,(RANK(L5,$L$5:$L$14)))+COUNTIF(L$5:L5,L5)-1 -> 2
A6: BOTTAS Valtteri | D6: 3 | E6: 1 | G6: =IFERROR(CHOOSE(D6,25,18,15,12,10,8,6,4,2,1)+(F6=1),"") -> 15 | I6: MERCEDES | J6: =SUM($G$5:$G$7) -> 34 | K6: =IF(J6="",0,(RANK(J6,$J$5:$J$14)))+COUNTIF(J$5:J6,J6)-1 -> 2 | L6: =SUMIF(GB!$I$5:$I$14,GrB!$I6,GB!$L$5:$L$14)+$J6 -> 180 | M6: =IF(L6="",0,(RANK(L6,$L$5:$L$14)))+COUNTIF(L$5:L6,L6)-1 -> 1
I7: RACING POINT | J7: =SUM($G$14:$G$16) -> 14 | K7: =IF(J7="",0,(RANK(J7,$J$5:$J$14)))+COUNTIF(J$5:J7,J7)-1 -> 3 | L7: =SUMIF(GB!$I$5:$I$14,GrB!$I7,GB!$L$5:$L$14)+$J7 -> 56 | M7: =IF(L7="",0,(RANK(L7,$L$5:$L$14)))+COUNTIF(L$5:L7,L7)-1 -> 3
A8: VETTEL Sebastian | B8: FERRARI | D8: 12 | I8: FERRARI | J8: =SUM($G$8:$G$10) -> 12 | K8: =IF(J8="",0,(RANK(J8,$J$5:$J$14)))+COUNTIF(J$5:J8,J8)-1 -> 4 | L8: =SUMIF(GB!$I$5:$I$14,GrB!$I8,GB!$L$5:$L$14)+$J8 -> 55 | M8: =IF(L8="",0,(RANK(L8,$L$5:$L$14)))+COUNTIF(L$5:L8,L8)-1 -> 4
A9: LECLERC Charles | D9: 4 | G9: 12 | I9: RENAULT | J9: =SUM($G$20:$G$22) -> 4 | K9: =IF(J9="",0,(RANK(J9,$J$5:$J$14)))+COUNTIF(J$5:J9,J9)-1 -> 5 | L9: =SUMIF(GB!$I$5:$I$14,GrB!$I9,GB!$L$5:$L$14)+$J9 -> 36 | M9: =IF(L9="",0,(RANK(L9,$L$5:$L$14)))+COUNTIF(L$5:L9,L9)-1 -> 6
I10: Mc LAREN | J10: =SUM($G$29:$G$31) -> 2 | K10: =IF(J10="",0,(RANK(J10,$J$5:$J$14)))+COUNTIF(J$5:J10,J10)-1 -> 6 | L10: =SUMIF(GB!$I$5:$I$14,GrB!$I10,GB!$L$5:$L$14)+$J10 -> 53 | M10: =IF(L10="",0,(RANK(L10,$L$5:$L$14)))+COUNTIF(L$5:L10,L10)-1 -> 5
A11: VERSTAPPEN Max | B11: RED BULL | D11: 1 | G11: 25 | I11: ALPHA TAURI | J11: =SUM($G$23:$G$25) -> 1 | K11: =IF(J11="",0,(RANK(J11,$J$5:$J$14)))+COUNTIF(J$5:J11,J11)-1 -> 7 | L11: =SUMIF(GB!$I$5:$I$14,GrB!$I11,GB!$L$5:$L$14)+$J11 -> 14 | M11: =IF(L11="",0,(RANK(L11,$L$5:$L$14)))+COUNTIF(L$5:L11,L11)-1 -> 7
A12: ALBON Alexander | D12: 5 | G12: 10 | I12: HAAS | J12: =SUM($G$26:$G$28) -> 0 | K12: =IF(J12="",0,(RANK(J12,$J$5:$J$14)))+COUNTIF(J$5:J12,J12)-1 -> 8 | L12: =SUMIF(GB!$I$5:$I$14,GrB!$I12,GB!$L$5:$L$14)+$J12 -> 1 | M12: =IF(L12="",0,(RANK(L12,$L$5:$L$14)))+COUNTIF(L$5:L12,L12)-1 -> 9
I13: WILLIAMS | J13: =SUM($G$17:$G$19) -> 0 | K13: =IF(J13="",0,(RANK(J13,$J$5:$J$14)))+COUNTIF(J$5:J13,J13)-1 -> 9 | L13: =SUMIF(GB!$I$5:$I$14,GrB!$I13,GB!$L$5:$L$14)+$J13 -> 0 | M13: =IF(L13="",0,(RANK(L13,$L$5:$L$14)))+COUNTIF(L$5:L13,L13)-1 -> 10
A14: PEREZ Sergio | B14: RACING POINT | D14: NC | I14: ALFA ROMEO | J14: =SUM($G$32:$G$34) -> 0 | K14: =IF(J14="",0,(RANK(J14,$J$5:$J$14)))+COUNTIF(J$5:J14,J14)-1 -> 10 | L14: =SUMIF(GB!$I$5:$I$14,GrB!$I14,GB!$L$5:$L$14)+$J14 -> 2 | M14: =IF(L14="",0,(RANK(L14,$L$5:$L$14)))+COUNTIF(L$5:L14,L14)-1 -> 8
A15: STROLL Lance | D15: 6 | G15: 8
A16: HULKENBERG Nico | D16: 7 | G16: 6
A17: RUSSELL George | B17: WILLIAMS | D17: 18
A18: LATIFI Nichola | D18: 19
A20: RICCIARDO Daniel | B20: RENAULT | D20: 14
A21: OCON Sebastian | D21: 8 | G21: 4
A23: KVYAT Daniil | B23: ALPHA TAURI | D23: 10 | G23: 1
A24: GASLY Pierre | D24: 11
A26: GROSJEAN Romain | B26: HAAS | D26: 16
A27: MAGNUSSEN Kevin | D27: OUT
A29: NORRIS Lando | B29: McLAREN | D29: 9 | G29: 2
A30: SAINZ.Jr Carlos | D30: 13
A32: RAÏKKÖNEN Kimi | B32: ALFA ROMEO | D32: 15
A33: GIOVINAZZI Antonio | D33: 17

Sheet Espagne
A1: BARCELONE- 16AOUT 2020
A3: PILOTES | B3: ECURIES | C3: VOITURES | D3: Finish | E3: Pôle | F3: Pt tour | G3: Points | I3: CLASSEMENT
I4: ÉCURIES | J4: POINTS | K4: RANG | L4: TOTAL | M4: PONCTUEL
A5: HAMILTON Lewis | B5: MERCEDES | D5: 1 | E5: 1 | G5: =IFERROR(CHOOSE(D5,25,18,15,12,10,8,6,4,2,1)+(F5=1),"") -> 25 | I5: MERCEDES | J5: =SUM($G$5:$G$7) -> 41 | K5: =IF(J5="",0,(RANK(J5,$J$5:$J$14)))+COUNTIF(J$5:J5,J5)-1 -> 1 | L5: =SUMIF(GrB!$I$5:$I$14,Espagne!$I5,GrB!$L$5:$L$14)+$J5 -> 221 | M5: =IF(L5="",0,(RANK(L5,$L$5:$L$14)))+COUNTIF(L$5:L5,L5)-1 -> 1
A6: BOTTAS Valtteri | D6: 3 | F6: 1 | G6: =IFERROR(CHOOSE(D6,25,18,15,12,10,8,6,4,2,1)+(F6=1),"") -> 16 | I6: RED BULL | J6: =SUM($G$11:$G$13) -> 22 | K6: =IF(J6="",0,(RANK(J6,$J$5:$J$14)))+COUNTIF(J$5:J6,J6)-1 -> 2 | L6: =SUMIF(GrB!$I$5:$I$14,Espagne!$I6,GrB!$L$5:$L$14)+$J6 -> 135 | M6: =IF(L6="",0,(RANK(L6,$L$5:$L$14)))+COUNTIF(L$5:L6,L6)-1 -> 2
I7: RACING POINT | J7: =SUM($G$14:$G$16) -> 22 | K7: =IF(J7="",0,(RANK(J7,$J$5:$J$14)))+COUNTIF(J$5:J7,J7)-1 -> 3 | L7: =SUMIF(GrB!$I$5:$I$14,Espagne!$I7,GrB!$L$5:$L$14)+$J7 -> 78 | M7: =IF(L7="",0,(RANK(L7,$L$5:$L$14)))+COUNTIF(L$5:L7,L7)-1 -> 3
A8: VETTEL Sebastian | B8: FERRARI | D8: 7 | G8: 6 | I8: Mc LAREN | J8: =SUM($G$29:$G$31) -> 9 | K8: =IF(J8="",0,(RANK(J8,$J$5:$J$14)))+COUNTIF(J$5:J8,J8)-1 -> 4 | L8: =SUMIF(GrB!$I$5:$I$14,Espagne!$I8,GrB!$L$5:$L$14)+$J8 -> 62 | M8: =IF(L8="",0,(RANK(L8,$L$5:$L$14)))+COUNTIF(L$5:L8,L8)-1 -> 4
A9: LECLERC Charles | D9: OUT | I9: FERRARI | J9: =SUM($G$8:$G$10) -> 6 | K9: =IF(J9="",0,(RANK(J9,$J$5:$J$14)))+COUNTIF(J$5:J9,J9)-1 -> 5 | L9: =SUMIF(GrB!$I$5:$I$14,Espagne!$I9,GrB!$L$5:$L$14)+$J9 -> 61 | M9: =IF(L9="",0,(RANK(L9,$L$5:$L$14)))+COUNTIF(L$5:L9,L9)-1 -> 5
I10: ALPHA TAURI | J10: =SUM($G$23:$G$25) -> 2 | K10: =IF(J10="",0,(RANK(J10,$J$5:$J$14)))+COUNTIF(J$5:J10,J10)-1 -> 6 | L10: =SUMIF(GrB!$I$5:$I$14,Espagne!$I10,GrB!$L$5:$L$14)+$J10 -> 16 | M10: =IF(L10="",0,(RANK(L10,$L$5:$L$14)))+COUNTIF(L$5:L10,L10)-1 -> 7
A11: VERSTAPPEN Max | B11: RED BULL | D11: 2 | G11: 18 | I11: RENAULT | J11: =SUM($G$20:$G$22) -> 0 | K11: =IF(J11="",0,(RANK(J11,$J$5:$J$14)))+COUNTIF(J$5:J11,J11)-1 -> 7 | L11: =SUMIF(GrB!$I$5:$I$14,Espagne!$I11,GrB!$L$5:$L$14)+$J11 -> 36 | M11: =IF(L11="",0,(RANK(L11,$L$5:$L$14)))+COUNTIF(L$5:L11,L11)-1 -> 6
A12: ALBON Alexander | D12: 8 | G12: 4 | I12: HAAS | J12: =SUM($G$26:$G$28) -> 0 | K12: =IF(J12="",0,(RANK(J12,$J$5:$J$14)))+COUNTIF(J$5:J12,J12)-1 -> 8 | L12: =SUMIF(GrB!$I$5:$I$14,Espagne!$I12,GrB!$L$5:$L$14)+$J12 -> 1 | M12: =IF(L12="",0,(RANK(L12,$L$5:$L$14)))+COUNTIF(L$5:L12,L12)-1 -> 9
I13: WILLIAMS | J13: =SUM($G$17:$G$19) -> 0 | K13: =IF(J13="",0,(RANK(J13,$J$5:$J$14)))+COUNTIF(J$5:J13,J13)-1 -> 9 | L13: =SUMIF(GrB!$I$5:$I$14,Espagne!$I13,GrB!$L$5:$L$14)+$J13 -> 0 | M13: =IF(L13="",0,(RANK(L13,$L$5:$L$14)))+COUNTIF(L$5:L13,L13)-1 -> 10
A14: PEREZ Sergio | B14: RACING POINT | D14: 5 | G14: 10 | I14: ALFA ROMEO | J14: =SUM($G$32:$G$34) -> 0 | K14: =IF(J14="",0,(RANK(J14,$J$5:$J$14)))+COUNTIF(J$5:J14,J14)-1 -> 10 | L14: =SUMIF(GrB!$I$5:$I$14,Espagne!$I14,GrB!$L$5:$L$14)+$J14 -> 2 | M14: =IF(L14="",0,(RANK(L14,$L$5:$L$14)))+COUNTIF(L$5:L14,L14)-1 -> 8
A15: STROLL Lance | D15: 4 | G15: 12
A17: RUSSELL George | B17: WILLIAMS | D17: 17
A18: LATIFI Nichola | D18: 18
A20: RICCIARDO Daniel | B20: RENAULT | D20: 11
A21: OCON Sebastian | D21: 13
A23: KVYAT Daniil | B23: ALPHA TAURI | D23: 12
A24: GASLY Pierre | D24: 9 | G24: 2
A26: GROSJEAN Romain | B26: HAAS | D26: 19
A27: MAGNUSSEN Kevin | D27: 15
A29: NORRIS Lando | B29: McLAREN | D29: 10 | G29: 1
A30: SAINZ.Jr Carlos | D30: 6 | G30: 8
A32: RAÏKKÖNEN Kimi | B32: ALFA ROMEO | D32: 14
A33: GIOVINAZZI Antonio | D33: 16

Sheet Belgique
A1: SPA FRANCORCHAMPS - 30 AOUT 2020
A3: PILOTES | B3: ECURIES | C3: VOITURES | D3: Finish | E3: Pôle | F3: Pt tour | G3: Points | I3: CLASSEMENT
I4: ÉCURIES | J4: POINTS | K4: RANG | L4: TOTAL | M4: PONCTUEL
A5: HAMILTON Lewis | B5: MERCEDES | D5: 1 | E5: 1 | G5: =IFERROR(CHOOSE(D5,25,18,15,12,10,8,6,4,2,1)+(F5=1),"") -> 25 | I5: MERCEDES | J5: =SUM($G$5:$G$7) -> 43 | K5: =IF(J5="",0,(RANK(J5,$J$5:$J$14)))+COUNTIF(J$5:J5,J5)-1 -> 1 | L5: =SUMIF(Espagne!$I$5:$I$14,Belgique!$I5,Espagne!$L$5:$L$14)+$J5 -> 264 | M5: =IF(L5="",0,(RANK(L5,$L$5:$L$14)))+COUNTIF(L$5:L5,L5)-1 -> 1
A6: BOTTAS Valtteri | D6: 2 | G6: =IFERROR(CHOOSE(D6,25,18,15,12,10,8,6,4,2,1)+(F6=1),"") -> 18 | I6: RED BULL | J6: =SUM($G$11:$G$13) -> 23 | K6: =IF(J6="",0,(RANK(J6,$J$5:$J$14)))+COUNTIF(J$5:J6,J6)-1 -> 2 | L6: =SUMIF(Espagne!$I$5:$I$14,Belgique!$I6,Espagne!$L$5:$L$14)+$J6 -> 158 | M6: =IF(L6="",0,(RANK(L6,$L$5:$L$14)))+COUNTIF(L$5:L6,L6)-1 -> 2
I7: RENAULT | J7: =SUM($G$20:$G$22) -> 23 | K7: =IF(J7="",0,(RANK(J7,$J$5:$J$14)))+COUNTIF(J$5:J7,J7)-1 -> 3 | L7: =SUMIF(Espagne!$I$5:$I$14,Belgique!$I7,Espagne!$L$5:$L$14)+$J7 -> 59 | M7: =IF(L7="",0,(RANK(L7,$L$5:$L$14)))+COUNTIF(L$5:L7,L7)-1 -> 6
A8: VETTEL Sebastian | B8: FERRARI | D8: 13 | I8: Mc LAREN | J8: =SUM($G$29:$G$31) -> 6 | K8: =IF(J8="",0,(RANK(J8,$J$5:$J$14)))+COUNTIF(J$5:J8,J8)-1 -> 4 | L8: =SUMIF(Espagne!$I$5:$I$14,Belgique!$I8,Espagne!$L$5:$L$14)+$J8 -> 68 | M8: =IF(L8="",0,(RANK(L8,$L$5:$L$14)))+COUNTIF(L$5:L8,L8)-1 -> 4
A9: LECLERC Charles | D9: 14 | I9: ALPHA TAURI | J9: =SUM($G$23:$G$25) -> 4 | K9: =IF(J9="",0,(RANK(J9,$J$5:$J$14)))+COUNTIF(J$5:J9,J9)-1 -> 5 | L9: =SUMIF(Espagne!$I$5:$I$14,Belgique!$I9,Espagne!$L$5:$L$14)+$J9 -> 20 | M9: =IF(L9="",0,(RANK(L9,$L$5:$L$14)))+COUNTIF(L$5:L9,L9)-1 -> 7
I10: RACING POINT | J10: =SUM($G$14:$G$16) -> 3 | K10: =IF(J10="",0,(RANK(J10,$J$5:$J$14)))+COUNTIF(J$5:J10,J10)-1 -> 6 | L10: =SUMIF(Espagne!$I$5:$I$14,Belgique!$I10,Espagne!$L$5:$L$14)+$J10 -> 81 | M10: =IF(L10="",0,(RANK(L10,$L$5:$L$14)))+COUNTIF(L$5:L10,L10)-1 -> 3
A11: VERSTAPPEN Max | B11: RED BULL | D11: 3 | G11: 15 | I11: FERRARI | J11: =SUM($G$8:$G$10) -> 0 | K11: =IF(J11="",0,(RANK(J11,$J$5:$J$14)))+COUNTIF(J$5:J11,J11)-1 -> 7 | L11: =SUMIF(Espagne!$I$5:$I$14,Belgique!$I11,Espagne!$L$5:$L$14)+$J11 -> 61 | M11: =IF(L11="",0,(RANK(L11,$L$5:$L$14)))+COUNTIF(L$5:L11,L11)-1 -> 5
A12: ALBON Alexander | D12: 6 | G12: 8 | I12: HAAS | J12: =SUM($G$26:$G$28) -> 0 | K12: =IF(J12="",0,(RANK(J12,$J$5:$J$14)))+COUNTIF(J$5:J12,J12)-1 -> 8 | L12: =SUMIF(Espagne!$I$5:$I$14,Belgique!$I12,Espagne!$L$5:$L$14)+$J12 -> 1 | M12: =IF(L12="",0,(RANK(L12,$L$5:$L$14)))+COUNTIF(L$5:L12,L12)-1 -> 9
I13: WILLIAMS | J13: =SUM($G$17:$G$19) -> 0 | K13: =IF(J13="",0,(RANK(J13,$J$5:$J$14)))+COUNTIF(J$5:J13,J13)-1 -> 9 | L13: =SUMIF(Espagne!$I$5:$I$14,Belgique!$I13,Espagne!$L$5:$L$14)+$J13 -> 0 | M13: =IF(L13="",0,(RANK(L13,$L$5:$L$14)))+COUNTIF(L$5:L13,L13)-1 -> 10
A14: PEREZ Sergio | B14: RACING POINT | D14: 10 | G14: 1 | I14: ALFA ROMEO | J14: =SUM($G$32:$G$34) -> 0 | K14: =IF(J14="",0,(RANK(J14,$J$5:$J$14)))+COUNTIF(J$5:J14,J14)-1 -> 10 | L14: =SUMIF(Espagne!$I$5:$I$14,Belgique!$I14,Espagne!$L$5:$L$14)+$J14 -> 2 | M14: =IF(L14="",0,(RANK(L14,$L$5:$L$14)))+COUNTIF(L$5:L14,L14)-1 -> 8
A15: STROLL Lance | D15: 9 | G15: 2
A17: RUSSELL George | B17: WILLIAMS | D17: OUT
A18: LATIFI Nichola | D18: 16
A20: RICCIARDO Daniel | B20: RENAULT | D20: 4 | F20: 1 | G20: 13
A21: OCON Sebastian | D21: 5 | G21: 10
A23: KVYAT Daniil | B23: ALPHA TAURI | D23: 11
A24: GASLY Pierre | D24: 8 | G24: 4
A26: GROSJEAN Romain | B26: HAAS | D26: 15
A27: MAGNUSSEN Kevin | D27: 17
A29: NORRIS Lando | B29: McLAREN | D29: 7 | G29: 6
A30: SAINZ.Jr Carlos | D30: OUT
A32: RAÏKKÖNEN Kimi | B32: ALFA ROMEO | D32: 12
A33: GIOVINAZZI Antonio | D33: OUT

Sheet Italie
A1: MONZA - 6 SEPTEMBRE 2020
A3: PILOTES | B3: ECURIES | C3: VOITURES | D3: Finish | E3: Pôle | F3: Pt tour | G3: Points | I3: CLASSEMENT
I4: ÉCURIES | J4: POINTS | K4: RANG | L4: TOTAL | M4: PONCTUEL
A5: HAMILTON Lewis | B5: MERCEDES | D5: 7 | E5: 1 | F5: 1 | G5: =IFERROR(CHOOSE(D5,25,18,15,12,10,8,6,4,2,1)+(F5=1),"") -> 7 | I5: Mc LAREN | J5: =SUM($G$29:$G$31) -> 30 | K5: =IF(J5="",0,(RANK(J5,$J$5:$J$14)))+COUNTIF(J$5:J5,J5)-1 -> 1 | L5: =SUMIF(Belgique!$I$5:$I$14,Italie!$I5,Belgique!$L$5:$L$14)+$J5 -> 98 | M5: =IF(L5="",0,(RANK(L5,$L$5:$L$14)))+COUNTIF(L$5:L5,L5)-1 -> 3
A6: BOTTAS Valtteri | D6: 5 | G6: =IFERROR(CHOOSE(D6,25,18,15,12,10,8,6,4,2,1)+(F6=1),"") -> 10 | I6: ALPHA TAURI | J6: =SUM($G$23:$G$25) -> 27 | K6: =IF(J6="",0,(RANK(J6,$J$5:$J$14)))+COUNTIF(J$5:J6,J6)-1 -> 2 | L6: =SUMIF(Belgique!$I$5:$I$14,Italie!$I6,Belgique!$L$5:$L$14)+$J6 -> 47 | M6: =IF(L6="",0,(RANK(L6,$L$5:$L$14)))+COUNTIF(L$5:L6,L6)-1 -> 7
I7: MERCEDES | J7: =SUM($G$5:$G$7) -> 17 | K7: =IF(J7="",0,(RANK(J7,$J$5:$J$14)))+COUNTIF(J$5:J7,J7)-1 -> 3 | L7: =SUMIF(Belgique!$I$5:$I$14,Italie!$I7,Belgique!$L$5:$L$14)+$J7 -> 281 | M7: =IF(L7="",0,(RANK(L7,$L$5:$L$14)))+COUNTIF(L$5:L7,L7)-1 -> 1
A8: VETTEL Sebastian | B8: FERRARI | D8: OUT | G8: =IFERROR(CHOOSE(D8,25,18,15,12,10,8,6,4,2,1)+(F8=1),"") ->  | I8: RACING POINT | J8: =SUM($G$14:$G$16) -> 16 | K8: =IF(J8="",0,(RANK(J8,$J$5:$J$14)))+COUNTIF(J$5:J8,J8)-1 -> 4 | L8: =SUMIF(Belgique!$I$5:$I$14,Italie!$I8,Belgique!$L$5:$L$14)+$J8 -> 97 | M8: =IF(L8="",0,(RANK(L8,$L$5:$L$14)))+COUNTIF(L$5:L8,L8)-1 -> 4
A9: LECLERC Charles | D9: OUT | I9: RENAULT | J9: =SUM($G$20:$G$22) -> 12 | K9: =IF(J9="",0,(RANK(J9,$J$5:$J$14)))+COUNTIF(J$5:J9,J9)-1 -> 5 | L9: =SUMIF(Belgique!$I$5:$I$14,Italie!$I9,Belgique!$L$5:$L$14)+$J9 -> 71 | M9: =IF(L9="",0,(RANK(L9,$L$5:$L$14)))+COUNTIF(L$5:L9,L9)-1 -> 5
I10: RED BULL | J10: =SUM($G$11:$G$13) -> 0 | K10: =IF(J10="",0,(RANK(J10,$J$5:$J$14)))+COUNTIF(J$5:J10,J10)-1 -> 6 | L10: =SUMIF(Belgique!$I$5:$I$14,Italie!$I10,Belgique!$L$5:$L$14)+$J10 -> 158 | M10: =IF(L10="",0,(RANK(L10,$L$5:$L$14)))+COUNTIF(L$5:L10,L10)-1 -> 2
A11: VERSTAPPEN Max | B11: RED BULL | D11: OUT | I11: FERRARI | J11: =SUM($G$8:$G$10) -> 0 | K11: =IF(J11="",0,(RANK(J11,$J$5:$J$14)))+COUNTIF(J$5:J11,J11)-1 -> 7 | L11: =SUMIF(Belgique!$I$5:$I$14,Italie!$I11,Belgique!$L$5:$L$14)+$J11 -> 61 | M11: =IF(L11="",0,(RANK(L11,$L$5:$L$14)))+COUNTIF(L$5:L11,L11)-1 -> 6
A12: ALBON Alexander | D12: 15 | G12: =IFERROR(CHOOSE(D12,25,18,15,12,10,8,6,4,2,1)+(F12=1),"") ->  | I12: HAAS | J12: =SUM($G$26:$G$28) -> 0 | K12: =IF(J12="",0,(RANK(J12,$J$5:$J$14)))+COUNTIF(J$5:J12,J12)-1 -> 8 | L12: =SUMIF(Belgique!$I$5:$I$14,Italie!$I12,Belgique!$L$5:$L$14)+$J12 -> 1 | M12: =IF(L12="",0,(RANK(L12,$L$5:$L$14)))+COUNTIF(L$5:L12,L12)-1 -> 9
I13: WILLIAMS | J13: =SUM($G$17:$G$19) -> 0 | K13: =IF(J13="",0,(RANK(J13,$J$5:$J$14)))+COUNTIF(J$5:J13,J13)-1 -> 9 | L13: =SUMIF(Belgique!$I$5:$I$14,Italie!$I13,Belgique!$L$5:$L$14)+$J13 -> 0 | M13: =IF(L13="",0,(RANK(L13,$L$5:$L$14)))+COUNTIF(L$5:L13,L13)-1 -> 10
A14: PEREZ Sergio | B14: RACING POINT | D14: 10 | G14: 1 | I14: ALFA ROMEO | J14: =SUM($G$32:$G$34) -> 0 | K14: =IF(J14="",0,(RANK(J14,$J$5:$J$14)))+COUNTIF(J$5:J14,J14)-1 -> 10 | L14: =SUMIF(Belgique!$I$5:$I$14,Italie!$I14,Belgique!$L$5:$L$14)+$J14 -> 2 | M14: =IF(L14="",0,(RANK(L14,$L$5:$L$14)))+COUNTIF(L$5:L14,L14)-1 -> 8
A15: STROLL Lance | D15: 3 | G15: 15
A17: RUSSELL George | B17: WILLIAMS | D17: 14
A18: LATIFI Nichola | D18: 11
A20: RICCIARDO Daniel | B20: RENAULT | D20: 6 | G20: 8
A21: OCON Sebastian | D21: 8 | G21: 4
A23: KVYAT Daniil | B23: ALPHA TAURI | D23: 9 | G23: 2
A24: GASLY Pierre | D24: 1 | G24: 25
A26: GROSJEAN Romain | B26: HAAS | D26: 12
A27: MAGNUSSEN Kevin | D27: OUT
A29: NORRIS Lando | B29: McLAREN | D29: 4 | G29: 12
A30: SAINZ.Jr Carlos | D30: 2 | G30: 18
A32: RAÏKKÖNEN Kimi | B32: ALFA ROMEO | D32: 13
A33: GIOVINAZZI Antonio | D33: 16

Sheet Toscane
A1: MUGELLO - 6 SEPTEMBRE 2020
A3: PILOTES | B3: ECURIES | C3: VOITURES | D3: Finish | E3: Pôle | F3: Pt tour | G3: Points | I3: CLASSEMENT
I4: ÉCURIES | J4: POINTS | K4: RANG | L4: TOTAL | M4: PONCTUEL
A5: HAMILTON Lewis | B5: MERCEDES | D5: 1 | E5: 1 | F5: 1 | G5: =IFERROR(CHOOSE(D5,25,18,15,12,10,8,6,4,2,1)+(F5=1),"") -> 26 | I5: MERCEDES | J5: =SUM($G$5:$G$7) -> 44 | K5: =IF(J5="",0,(RANK(J5,$J$5:$J$14)))+COUNTIF(J$5:J5,J5)-1 -> 1 | L5: =SUMIF(Italie!$I$5:$I$14,Toscane!$I5,Italie!$L$5:$L$14)+$J5 -> 325 | M5: =IF(L5="",0,(RANK(L5,$L$5:$L$14)))+COUNTIF(L$5:L5,L5)-1 -> 1
A6: BOTTAS Valtteri | D6: 2 | G6: =IFERROR(CHOOSE(D6,25,18,15,12,10,8,6,4,2,1)+(F6=1),"") -> 18 | I6: RED BULL | J6: =SUM($G$11:$G$13) -> 15 | K6: =IF(J6="",0,(RANK(J6,$J$5:$J$14)))+COUNTIF(J$5:J6,J6)-1 -> 2 | L6: =SUMIF(Italie!$I$5:$I$14,Toscane!$I6,Italie!$L$5:$L$14)+$J6 -> 173 | M6: =IF(L6="",0,(RANK(L6,$L$5:$L$14)))+COUNTIF(L$5:L6,L6)-1 -> 2
I7: RENAULT | J7: =SUM($G$20:$G$22) -> 12 | K7: =IF(J7="",0,(RANK(J7,$J$5:$J$14)))+COUNTIF(J$5:J7,J7)-1 -> 3 | L7: =SUMIF(Italie!$I$5:$I$14,Toscane!$I7,Italie!$L$5:$L$14)+$J7 -> 83 | M7: =IF(L7="",0,(RANK(L7,$L$5:$L$14)))+COUNTIF(L$5:L7,L7)-1 -> 5
A8: VETTEL Sebastian | B8: FERRARI | D8: 10 | G8: 1 | I8: RACING POINT | J8: =SUM($G$14:$G$16) -> 10 | K8: =IF(J8="",0,(RANK(J8,$J$5:$J$14)))+COUNTIF(J$5:J8,J8)-1 -> 4 | L8: =SUMIF(Italie!$I$5:$I$14,Toscane!$I8,Italie!$L$5:$L$14)+$J8 -> 107 | M8: =IF(L8="",0,(RANK(L8,$L$5:$L$14)))+COUNTIF(L$5:L8,L8)-1 -> 3
A9: LECLERC Charles | D9: 8 | G9: 4 | I9: Mc LAREN | J9: =SUM($G$29:$G$31) -> 8 | K9: =IF(J9="",0,(RANK(J9,$J$5:$J$14)))+COUNTIF(J$5:J9,J9)-1 -> 5 | L9: =SUMIF(Italie!$I$5:$I$14,Toscane!$I9,Italie!$L$5:$L$14)+$J9 -> 106 | M9: =IF(L9="",0,(RANK(L9,$L$5:$L$14)))+COUNTIF(L$5:L9,L9)-1 -> 4
I10: ALPHA TAURI | J10: =SUM($G$23:$G$25) -> 6 | K10: =IF(J10="",0,(RANK(J10,$J$5:$J$14)))+COUNTIF(J$5:J10,J10)-1 -> 6 | L10: =SUMIF(Italie!$I$5:$I$14,Toscane!$I10,Italie!$L$5:$L$14)+$J10 -> 53 | M10: =IF(L10="",0,(RANK(L10,$L$5:$L$14)))+COUNTIF(L$5:L10,L10)-1 -> 7
A11: VERSTAPPEN Max | B11: RED BULL | D11: OUT | I11: FERRARI | J11: =SUM($G$8:$G$10) -> 5 | K11: =IF(J11="",0,(RANK(J11,$J$5:$J$14)))+COUNTIF(J$5:J11,J11)-1 -> 7 | L11: =SUMIF(Italie!$I$5:$I$14,Toscane!$I11,Italie!$L$5:$L$14)+$J11 -> 66 | M11: =IF(L11="",0,(RANK(L11,$L$5:$L$14)))+COUNTIF(L$5:L11,L11)-1 -> 6
A12: ALBON Alexander | D12: 3 | G12: 15 | I12: ALFA ROMEO | J12: =SUM($G$32:$G$34) -> 2 | K12: =IF(J12="",0,(RANK(J12,$J$5:$J$14)))+COUNTIF(J$5:J12,J12)-1 -> 8 | L12: =SUMIF(Italie!$I$5:$I$14,Toscane!$I12,Italie!$L$5:$L$14)+$J12 -> 4 | M12: =IF(L12="",0,(RANK(L12,$L$5:$L$14)))+COUNTIF(L$5:L12,L12)-1 -> 8
I13: HAAS | J13: =SUM($G$26:$G$28) -> 0 | K13: =IF(J13="",0,(RANK(J13,$J$5:$J$14)))+COUNTIF(J$5:J13,J13)-1 -> 9 | L13: =SUMIF(Italie!$I$5:$I$14,Toscane!$I13,Italie!$L$5:$L$14)+$J13 -> 1 | M13: =IF(L13="",0,(RANK(L13,$L$5:$L$14)))+COUNTIF(L$5:L13,L13)-1 -> 9
A14: PEREZ Sergio | B14: RACING POINT | D14: 5 | G14: 10 | I14: WILLIAMS | J14: =SUM($G$17:$G$19) -> 0 | K14: =IF(J14="",0,(RANK(J14,$J$5:$J$14)))+COUNTIF(J$5:J14,J14)-1 -> 10 | L14: =SUMIF(Italie!$I$5:$I$14,Toscane!$I14,Italie!$L$5:$L$14)+$J14 -> 0 | M14: =IF(L14="",0,(RANK(L14,$L$5:$L$14)))+COUNTIF(L$5:L14,L14)-1 -> 10
A15: STROLL Lance | D15: OUT
A17: RUSSELL George | B17: WILLIAMS | D17: 11
A18: LATIFI Nichola | D18: OUT
A20: RICCIARDO Daniel | B20: RENAULT | D20: 4 | G20: 12
A21: OCON Sebastian | D21: OUT
A23: KVYAT Daniil | B23: ALPHA TAURI | D23: 7 | G23: 6
A24: GASLY Pierre | D24: OUT
A26: GROSJEAN Romain | B26: HAAS | D26: 12
A27: MAGNUSSEN Kevin | D27: OUT
A29: NORRIS Lando | B29: McLAREN | D29: 6 | G29: 8
A30: SAINZ.Jr Carlos | D30: OUT
A32: RAÏKKÖNEN Kimi | B32: ALFA ROMEO | D32: 9 | G32: 2
A33: GIOVINAZZI Antonio | D33: OUT

Sheet Russie
A1: SOTCHI - 27 SEPTEMBRE 2020
A3: PILOTES | B3: ECURIES | C3: VOITURES | D3: Finish | E3: Pôle | F3: Pt tour | G3: Points | I3: CLASSEMENT
I4: ÉCURIES | J4: POINTS | K4: RANG | L4: TOTAL | M4: PONCTUEL
A5: HAMILTON Lewis | B5: MERCEDES | D5: 3 | E5: 1 | G5: =IFERROR(CHOOSE(D5,25,18,15,12,10,8,6,4,2,1)+(F5=1),"") -> 15 | I5: MERCEDES | J5: =SUM($G$5:$G$7) -> 41 | K5: =IF(J5="",0,(RANK(J5,$J$5:$J$14)))+COUNTIF(J$5:J5,J5)-1 -> 1 | L5: =SUMIF(Toscane!$I$5:$I$14,Russie!$I5,Toscane!$L$5:$L$14)+$J5 -> 366 | M5: =IF(L5="",0,(RANK(L5,$L$5:$L$14)))+COUNTIF(L$5:L5,L5)-1 -> 1
A6: BOTTAS Valtteri | D6: 1 | F6: 1 | G6: =IFERROR(CHOOSE(D6,25,18,15,12,10,8,6,4,2,1)+(F6=1),"") -> 26 | I6: RED BULL | J6: =SUM($G$11:$G$13) -> 19 | K6: =IF(J6="",0,(RANK(J6,$J$5:$J$14)))+COUNTIF(J$5:J6,J6)-1 -> 2 | L6: =SUMIF(Toscane!$I$5:$I$14,Russie!$I6,Toscane!$L$5:$L$14)+$J6 -> 192 | M6: =IF(L6="",0,(RANK(L6,$L$5:$L$14)))+COUNTIF(L$5:L6,L6)-1 -> 2
I7: RENAULT | J7: =SUM($G$20:$G$22) -> 16 | K7: =IF(J7="",0,(RANK(J7,$J$5:$J$14)))+COUNTIF(J$5:J7,J7)-1 -> 3 | L7: =SUMIF(Toscane!$I$5:$I$14,Russie!$I7,Toscane!$L$5:$L$14)+$J7 -> 99 | M7: =IF(L7="",0,(RANK(L7,$L$5:$L$14)))+COUNTIF(L$5:L7,L7)-1 -> 5
A8: VETTEL Sebastian | B8: FERRARI | D8: 13 | I8: RACING POINT | J8: =SUM($G$14:$G$16) -> 12 | K8: =IF(J8="",0,(RANK(J8,$J$5:$J$14)))+COUNTIF(J$5:J8,J8)-1 -> 4 | L8: =SUMIF(Toscane!$I$5:$I$14,Russie!$I8,Toscane!$L$5:$L$14)+$J8 -> 119 | M8: =IF(L8="",0,(RANK(L8,$L$5:$L$14)))+COUNTIF(L$5:L8,L8)-1 -> 3
A9: LECLERC Charles | D9: 6 | G9: 8 | I9: FERRARI | J9: =SUM($G$8:$G$10) -> 8 | K9: =IF(J9="",0,(RANK(J9,$J$5:$J$14)))+COUNTIF(J$5:J9,J9)-1 -> 5 | L9: =SUMIF(Toscane!$I$5:$I$14,Russie!$I9,Toscane!$L$5:$L$14)+$J9 -> 74 | M9: =IF(L9="",0,(RANK(L9,$L$5:$L$14)))+COUNTIF(L$5:L9,L9)-1 -> 6
I10: ALPHA TAURI | J10: =SUM($G$23:$G$25) -> 6 | K10: =IF(J10="",0,(RANK(J10,$J$5:$J$14)))+COUNTIF(J$5:J10,J10)-1 -> 6 | L10: =SUMIF(Toscane!$I$5:$I$14,Russie!$I10,Toscane!$L$5:$L$14)+$J10 -> 59 | M10: =IF(L10="",0,(RANK(L10,$L$5:$L$14)))+COUNTIF(L$5:L10,L10)-1 -> 7
A11: VERSTAPPEN Max | B11: RED BULL | D11: 2 | G11: 18 | I11: Mc LAREN | J11: =SUM($G$29:$G$31) -> 0 | K11: =IF(J11="",0,(RANK(J11,$J$5:$J$14)))+COUNTIF(J$5:J11,J11)-1 -> 7 | L11: =SUMIF(Toscane!$I$5:$I$14,Russie!$I11,Toscane!$L$5:$L$14)+$J11 -> 106 | M11: =IF(L11="",0,(RANK(L11,$L$5:$L$14)))+COUNTIF(L$5:L11,L11)-1 -> 4
A12: ALBON Alexander | D12: 10 | G12: 1 | I12: ALFA ROMEO | J12: =SUM($G$32:$G$34) -> 0 | K12: =IF(J12="",0,(RANK(J12,$J$5:$J$14)))+COUNTIF(J$5:J12,J12)-1 -> 8 | L12: =SUMIF(Toscane!$I$5:$I$14,Russie!$I12,Toscane!$L$5:$L$14)+$J12 -> 4 | M12: =IF(L12="",0,(RANK(L12,$L$5:$L$14)))+COUNTIF(L$5:L12,L12)-1 -> 8
I13: HAAS | J13: =SUM($G$26:$G$28) -> 0 | K13: =IF(J13="",0,(RANK(J13,$J$5:$J$14)))+COUNTIF(J$5:J13,J13)-1 -> 9 | L13: =SUMIF(Toscane!$I$5:$I$14,Russie!$I13,Toscane!$L$5:$L$14)+$J13 -> 1 | M13: =IF(L13="",0,(RANK(L13,$L$5:$L$14)))+COUNTIF(L$5:L13,L13)-1 -> 9
A14: PEREZ Sergio | B14: RACING POINT | D14: 4 | G14: 12 | I14: WILLIAMS | J14: =SUM($G$17:$G$19) -> 0 | K14: =IF(J14="",0,(RANK(J14,$J$5:$J$14)))+COUNTIF(J$5:J14,J14)-1 -> 10 | L14: =SUMIF(Toscane!$I$5:$I$14,Russie!$I14,Toscane!$L$5:$L$14)+$J14 -> 0 | M14: =IF(L14="",0,(RANK(L14,$L$5:$L$14)))+COUNTIF(L$5:L14,L14)-1 -> 10
A15: STROLL Lance | D15: OUT
A17: RUSSELL George | B17: WILLIAMS | D17: 18
A18: LATIFI Nichola | D18: 16
A20: RICCIARDO Daniel | B20: RENAULT | D20: 5 | G20: 10
A21: OCON Sebastian | D21: 7 | G21: 6
A23: KVYAT Daniil | B23: ALPHA TAURI | D23: 8 | G23: 4
A24: GASLY Pierre | D24: 9 | G24: 2
A26: GROSJEAN Romain | B26: HAAS | D26: 17
A27: MAGNUSSEN Kevin | D27: 12
A29: NORRIS Lando | B29: McLAREN | D29: 15
A30: SAINZ.Jr Carlos | D30: OUT
A32: RAÏKKÖNEN Kimi | B32: ALFA ROMEO | D32: 14
A33: GIOVINAZZI Antonio | D33: 11

Sheet Nürburgring
A1: EIFEL - 11 OCTOBRE 2020
A3: PILOTES | B3: ECURIES | C3: VOITURES | D3: Finish | E3: Pôle | F3: Pt tour | G3: Points | I3: CLASSEMENT
I4: ÉCURIES | J4: POINTS | K4: RANG | L4: TOTAL | M4: PONCTUEL
A5: HAMILTON Lewis | B5: MERCEDES | D5: 1 | G5: =IFERROR(CHOOSE(D5,25,18,15,12,10,8,6,4,2,1)+(F5=1),"") -> 25 | I5: MERCEDES | J5: =SUM($G$5:$G$7) -> 25 | K5: =IF(J5="",0,(RANK(J5,$J$5:$J$14)))+COUNTIF(J$5:J5,J5)-1 -> 1 | L5: =SUMIF(Russie!$I$5:$I$14,Nürburgring!$I5,Russie!$L$5:$L$14)+$J5 -> 391 | M5: =IF(L5="",0,(RANK(L5,$L$5:$L$14)))+COUNTIF(L$5:L5,L5)-1 -> 1
A6: BOTTAS Valtteri | D6: OUT | E6: 1 | G6: =IFERROR(CHOOSE(D6,25,18,15,12,10,8,6,4,2,1)+(F6=1),"") ->  | I6: RED BULL | J6: =SUM($G$11:$G$13) -> 19 | K6: =IF(J6="",0,(RANK(J6,$J$5:$J$14)))+COUNTIF(J$5:J6,J6)-1 -> 2 | L6: =SUMIF(Russie!$I$5:$I$14,Nürburgring!$I6,Russie!$L$5:$L$14)+$J6 -> 211 | M6: =IF(L6="",0,(RANK(L6,$L$5:$L$14)))+COUNTIF(L$5:L6,L6)-1 -> 2
I7: RACING POINT | J7: =SUM($G$14:$G$16) -> 16 | K7: =IF(J7="",0,(RANK(J7,$J$5:$J$14)))+COUNTIF(J$5:J7,J7)-1 -> 3 | L7: =SUMIF(Russie!$I$5:$I$14,Nürburgring!$I7,Russie!$L$5:$L$14)+$J7 -> 135 | M7: =IF(L7="",0,(RANK(L7,$L$5:$L$14)))+COUNTIF(L$5:L7,L7)-1 -> 3
A8: VETTEL Sebastian | B8: FERRARI | D8: 11 | I8: RENAULT | J8: =SUM($G$20:$G$22) -> 15 | K8: =IF(J8="",0,(RANK(J8,$J$5:$J$14)))+COUNTIF(J$5:J8,J8)-1 -> 4 | L8: =SUMIF(Russie!$I$5:$I$14,Nürburgring!$I8,Russie!$L$5:$L$14)+$J8 -> 114 | M8: =IF(L8="",0,(RANK(L8,$L$5:$L$14)))+COUNTIF(L$5:L8,L8)-1 -> 5
A9: LECLERC Charles | D9: 7 | G9: 6 | I9: Mc LAREN | J9: =SUM($G$29:$G$31) -> 10 | K9: =IF(J9="",0,(RANK(J9,$J$5:$J$14)))+COUNTIF(J$5:J9,J9)-1 -> 5 | L9: =SUMIF(Russie!$I$5:$I$14,Nürburgring!$I9,Russie!$L$5:$L$14)+$J9 -> 116 | M9: =IF(L9="",0,(RANK(L9,$L$5:$L$14)))+COUNTIF(L$5:L9,L9)-1 -> 4
I10: ALPHA TAURI | J10: =SUM($G$23:$G$25) -> 8 | K10: =IF(J10="",0,(RANK(J10,$J$5:$J$14)))+COUNTIF(J$5:J10,J10)-1 -> 6 | L10: =SUMIF(Russie!$I$5:$I$14,Nürburgring!$I10,Russie!$L$5:$L$14)+$J10 -> 67 | M10: =IF(L10="",0,(RANK(L10,$L$5:$L$14)))+COUNTIF(L$5:L10,L10)-1 -> 7
A11: VERSTAPPEN Max | B11: RED BULL | D11: 2 | F11: 1 | G11: 19 | I11: FERRARI | J11: =SUM($G$8:$G$10) -> 6 | K11: =IF(J11="",0,(RANK(J11,$J$5:$J$14)))+COUNTIF(J$5:J11,J11)-1 -> 7 | L11: =SUMIF(Russie!$I$5:$I$14,Nürburgring!$I11,Russie!$L$5:$L$14)+$J11 -> 80 | M11: =IF(L11="",0,(RANK(L11,$L$5:$L$14)))+COUNTIF(L$5:L11,L11)-1 -> 6
A12: ALBON Alexander | D12: OUT | I12: HAAS | J12: =SUM($G$26:$G$28) -> 2 | K12: =IF(J12="",0,(RANK(J12,$J$5:$J$14)))+COUNTIF(J$5:J12,J12)-1 -> 8 | L12: =SUMIF(Russie!$I$5:$I$14,Nürburgring!$I12,Russie!$L$5:$L$14)+$J12 -> 3 | M12: =IF(L12="",0,(RANK(L12,$L$5:$L$14)))+COUNTIF(L$5:L12,L12)-1 -> 9
I13: ALFA ROMEO | J13: =SUM($G$32:$G$34) -> 1 | K13: =IF(J13="",0,(RANK(J13,$J$5:$J$14)))+COUNTIF(J$5:J13,J13)-1 -> 9 | L13: =SUMIF(Russie!$I$5:$I$14,Nürburgring!$I13,Russie!$L$5:$L$14)+$J13 -> 5 | M13: =IF(L13="",0,(RANK(L13,$L$5:$L$14)))+COUNTIF(L$5:L13,L13)-1 -> 8
A14: PEREZ Sergio | B14: RACING POINT | D14: 4 | G14: 12 | I14: WILLIAMS | J14: =SUM($G$17:$G$19) -> 0 | K14: =IF(J14="",0,(RANK(J14,$J$5:$J$14)))+COUNTIF(J$5:J14,J14)-1 -> 10 | L14: =SUMIF(Russie!$I$5:$I$14,Nürburgring!$I14,Russie!$L$5:$L$14)+$J14 -> 0 | M14: =IF(L14="",0,(RANK(L14,$L$5:$L$14)))+COUNTIF(L$5:L14,L14)-1 -> 10
A15: STROLL Lance
A16: HULKENBERG Nico | D16: 8 | G16: 4
A17: RUSSELL George | B17: WILLIAMS | D17: OUT
A18: LATIFI Nichola | D18: 14
A20: RICCIARDO Daniel | B20: RENAULT | D20: 3 | G20: 15
A21: OCON Sebastian | D21: OUT
A23: KVYAT Daniil | B23: ALPHA TAURI | D23: 15
A24: GASLY Pierre | D24: 6 | G24: 8
A26: GROSJEAN Romain | B26: HAAS | D26: 9 | G26: 2
A27: MAGNUSSEN Kevin | D27: 13
A29: NORRIS Lando | B29: McLAREN | D29: OUT
A30: SAINZ.Jr Carlos | D30: 5 | G30: 10
A32: RAÏKKÖNEN Kimi | B32: ALFA ROMEO | D32: 12
A33: GIOVINAZZI Antonio | D33: 10 | G33: 1

Sheet Portugal
A1: PORTIMAO - 25 OCTOBRE 2020
A3: PILOTES | B3: ECURIES | C3: VOITURES | D3: Finish | E3: Pôle | F3: Pt tour | G3: Points | I3: CLASSEMENT
I4: ÉCURIES | J4: POINTS | K4: RANG | L4: TOTAL | M4: PONCTUEL
A5: HAMILTON Lewis | B5: MERCEDES | D5: 1 | E5: 1 | F5: 1 | G5: =IFERROR(CHOOSE(D5,25,18,15,12,10,8,6,4,2,1)+(F5=1),"") -> 26 | I5: MERCEDES | J5: =SUM($G$5:$G$7) -> 44 | K5: =IF(J5="",0,(RANK(J5,$J$5:$J$14)))+COUNTIF(J$5:J5,J5)-1 -> 1 | L5: =SUMIF(Nürburgring!$I$5:$I$14,Portugal!$I5,Nürburgring!$L$5:$L$14)+$J5 -> 435 | M5: =IF(L5="",0,(RANK(L5,$L$5:$L$14)))+COUNTIF(L$5:L5,L5)-1 -> 1
A6: BOTTAS Valtteri | D6: 2 | G6: =IFERROR(CHOOSE(D6,25,18,15,12,10,8,6,4,2,1)+(F6=1),"") -> 18 | I6: RED BULL | J6: =SUM($G$11:$G$13) -> 15 | K6: =IF(J6="",0,(RANK(J6,$J$5:$J$14)))+COUNTIF(J$5:J6,J6)-1 -> 2 | L6: =SUMIF(Nürburgring!$I$5:$I$14,Portugal!$I6,Nürburgring!$L$5:$L$14)+$J6 -> 226 | M6: =IF(L6="",0,(RANK(L6,$L$5:$L$14)))+COUNTIF(L$5:L6,L6)-1 -> 2
I7: FERRARI | J7: =SUM($G$8:$G$10) -> 13 | K7: =IF(J7="",0,(RANK(J7,$J$5:$J$14)))+COUNTIF(J$5:J7,J7)-1 -> 3 | L7: =SUMIF(Nürburgring!$I$5:$I$14,Portugal!$I7,Nürburgring!$L$5:$L$14)+$J7 -> 93 | M7: =IF(L7="",0,(RANK(L7,$L$5:$L$14)))+COUNTIF(L$5:L7,L7)-1 -> 6
A8: VETTEL Sebastian | B8: FERRARI | D8: 10 | G8: 1 | I8: ALPHA TAURI | J8: =SUM($G$23:$G$25) -> 10 | K8: =IF(J8="",0,(RANK(J8,$J$5:$J$14)))+COUNTIF(J$5:J8,J8)-1 -> 4 | L8: =SUMIF(Nürburgring!$I$5:$I$14,Portugal!$I8,Nürburgring!$L$5:$L$14)+$J8 -> 77 | M8: =IF(L8="",0,(RANK(L8,$L$5:$L$14)))+COUNTIF(L$5:L8,L8)-1 -> 7
A9: LECLERC Charles | D9: 4 | G9: 12 | I9: Mc LAREN | J9: =SUM($G$29:$G$31) -> 8 | K9: =IF(J9="",0,(RANK(J9,$J$5:$J$14)))+COUNTIF(J$5:J9,J9)-1 -> 5 | L9: =SUMIF(Nürburgring!$I$5:$I$14,Portugal!$I9,Nürburgring!$L$5:$L$14)+$J9 -> 124 | M9: =IF(L9="",0,(RANK(L9,$L$5:$L$14)))+COUNTIF(L$5:L9,L9)-1 -> 4
I10: RACING POINT | J10: =SUM($G$14:$G$16) -> 6 | K10: =IF(J10="",0,(RANK(J10,$J$5:$J$14)))+COUNTIF(J$5:J10,J10)-1 -> 6 | L10: =SUMIF(Nürburgring!$I$5:$I$14,Portugal!$I10,Nürburgring!$L$5:$L$14)+$J10 -> 141 | M10: =IF(L10="",0,(RANK(L10,$L$5:$L$14)))+COUNTIF(L$5:L10,L10)-1 -> 3
A11: VERSTAPPEN Max | B11: RED BULL | D11: 3 | G11: 15 | I11: RENAULT | J11: =SUM($G$20:$G$22) -> 6 | K11: =IF(J11="",0,(RANK(J11,$J$5:$J$14)))+COUNTIF(J$5:J11,J11)-1 -> 7 | L11: =SUMIF(Nürburgring!$I$5:$I$14,Portugal!$I11,Nürburgring!$L$5:$L$14)+$J11 -> 120 | M11: =IF(L11="",0,(RANK(L11,$L$5:$L$14)))+COUNTIF(L$5:L11,L11)-1 -> 5
A12: ALBON Alexander | D12: 12 | I12: HAAS | J12: =SUM($G$26:$G$28) -> 0 | K12: =IF(J12="",0,(RANK(J12,$J$5:$J$14)))+COUNTIF(J$5:J12,J12)-1 -> 8 | L12: =SUMIF(Nürburgring!$I$5:$I$14,Portugal!$I12,Nürburgring!$L$5:$L$14)+$J12 -> 3 | M12: =IF(L12="",0,(RANK(L12,$L$5:$L$14)))+COUNTIF(L$5:L12,L12)-1 -> 9
I13: ALFA ROMEO | J13: =SUM($G$32:$G$34) -> 0 | K13: =IF(J13="",0,(RANK(J13,$J$5:$J$14)))+COUNTIF(J$5:J13,J13)-1 -> 9 | L13: =SUMIF(Nürburgring!$I$5:$I$14,Portugal!$I13,Nürburgring!$L$5:$L$14)+$J13 -> 5 | M13: =IF(L13="",0,(RANK(L13,$L$5:$L$14)))+COUNTIF(L$5:L13,L13)-1 -> 8
A14: PEREZ Sergio | B14: RACING POINT | D14: 7 | G14: 6 | I14: WILLIAMS | J14: =SUM($G$17:$G$19) -> 0 | K14: =IF(J14="",0,(RANK(J14,$J$5:$J$14)))+COUNTIF(J$5:J14,J14)-1 -> 10 | L14: =SUMIF(Nürburgring!$I$5:$I$14,Portugal!$I14,Nürburgring!$L$5:$L$14)+$J14 -> 0 | M14: =IF(L14="",0,(RANK(L14,$L$5:$L$14)))+COUNTIF(L$5:L14,L14)-1 -> 10
A15: STROLL Lance | D15: OUT
A17: RUSSELL George | B17: WILLIAMS | D17: 14 | I17: Avec 94 victoires, Hamilton détient le nouveau record
A18: LATIFI Nichola | D18: 18
A20: RICCIARDO Daniel | B20: RENAULT | D20: 9 | G20: 2
A21: OCON Sebastian | D21: 8 | G21: 4
A23: KVYAT Daniil | B23: ALPHA TAURI | D23: 19
A24: GASLY Pierre | D24: 5 | G24: 10
A26: GROSJEAN Romain | B26: HAAS | D26: 17
A27: MAGNUSSEN Kevin | D27: 16
A29: NORRIS Lando | B29: McLAREN | D29: 13
A30: SAINZ.Jr Carlos | D30: 6 | G30: 8
A32: RAÏKKÖNEN Kimi | B32: ALFA ROMEO | D32: 11
A33: GIOVINAZZI Antonio | D33: 15

Sheet Émilie-Romagne
A1: IMOLA - 1er NOVEMBRE 2020
A3: PILOTES | B3: ECURIES | C3: VOITURES | D3: Finish | E3: Pôle | F3: Pt tour | G3: Points | I3: CLASSEMENT
I4: ÉCURIES | J4: POINTS | K4: RANG | L4: TOTAL | M4: PONCTUEL
A5: HAMILTON Lewis | B5: MERCEDES | D5: 1 | F5: 1 | G5: =IFERROR(CHOOSE(D5,25,18,15,12,10,8,6,4,2,1)+(F5=1),"") -> 26 | I5: MERCEDES | J5: =SUM($G$5:$G$7) -> 44 | K5: =IF(J5="",0,(RANK(J5,$J$5:$J$14)))+COUNTIF(J$5:J5,J5)-1 -> 1 | L5: =SUMIF(Portugal!$I$5:$I$14,'Émilie-Romagne'!$I5,Portugal!$L$5:$L$14)+$J5 -> 479 | M5: =IF(L5="",0,(RANK(L5,$L$5:$L$14)))+COUNTIF(L$5:L5,L5)-1 -> 1
A6: BOTTAS Valtteri | D6: 2 | E6: 1 | G6: =IFERROR(CHOOSE(D6,25,18,15,12,10,8,6,4,2,1)+(F6=1),"") -> 18 | I6: RENAULT | J6: =SUM($G$20:$G$22) -> 15 | K6: =IF(J6="",0,(RANK(J6,$J$5:$J$14)))+COUNTIF(J$5:J6,J6)-1 -> 2 | L6: =SUMIF(Portugal!$I$5:$I$14,'Émilie-Romagne'!$I6,Portugal!$L$5:$L$14)+$J6 -> 135 | M6: =IF(L6="",0,(RANK(L6,$L$5:$L$14)))+COUNTIF(L$5:L6,L6)-1 -> 4
I7: ALPHA TAURI | J7: =SUM($G$23:$G$25) -> 12 | K7: =IF(J7="",0,(RANK(J7,$J$5:$J$14)))+COUNTIF(J$5:J7,J7)-1 -> 3 | L7: =SUMIF(Portugal!$I$5:$I$14,'Émilie-Romagne'!$I7,Portugal!$L$5:$L$14)+$J7 -> 89 | M7: =IF(L7="",0,(RANK(L7,$L$5:$L$14)))+COUNTIF(L$5:L7,L7)-1 -> 7
A8: VETTEL Sebastian | B8: FERRARI | D8: 12 | I8: FERRARI | J8: =SUM($G$8:$G$10) -> 10 | K8: =IF(J8="",0,(RANK(J8,$J$5:$J$14)))+COUNTIF(J$5:J8,J8)-1 -> 4 | L8: =SUMIF(Portugal!$I$5:$I$14,'Émilie-Romagne'!$I8,Portugal!$L$5:$L$14)+$J8 -> 103 | M8: =IF(L8="",0,(RANK(L8,$L$5:$L$14)))+COUNTIF(L$5:L8,L8)-1 -> 6
A9: LECLERC Charles | D9: 5 | G9: 10 | I9: Mc LAREN | J9: =SUM($G$29:$G$31) -> 10 | K9: =IF(J9="",0,(RANK(J9,$J$5:$J$14)))+COUNTIF(J$5:J9,J9)-1 -> 5 | L9: =SUMIF(Portugal!$I$5:$I$14,'Émilie-Romagne'!$I9,Portugal!$L$5:$L$14)+$J9 -> 134 | M9: =IF(L9="",0,(RANK(L9,$L$5:$L$14)))+COUNTIF(L$5:L9,L9)-1 -> 5
I10: RACING POINT | J10: =SUM($G$14:$G$16) -> 8 | K10: =IF(J10="",0,(RANK(J10,$J$5:$J$14)))+COUNTIF(J$5:J10,J10)-1 -> 6 | L10: =SUMIF(Portugal!$I$5:$I$14,'Émilie-Romagne'!$I10,Portugal!$L$5:$L$14)+$J10 -> 149 | M10: =IF(L10="",0,(RANK(L10,$L$5:$L$14)))+COUNTIF(L$5:L10,L10)-1 -> 3
A11: VERSTAPPEN Max | B11: RED BULL | D11: OUT | I11: ALFA ROMEO | J11: =SUM($G$32:$G$34) -> 3 | K11: =IF(J11="",0,(RANK(J11,$J$5:$J$14)))+COUNTIF(J$5:J11,J11)-1 -> 7 | L11: =SUMIF(Portugal!$I$5:$I$14,'Émilie-Romagne'!$I11,Portugal!$L$5:$L$14)+$J11 -> 8 | M11: =IF(L11="",0,(RANK(L11,$L$5:$L$14)))+COUNTIF(L$5:L11,L11)-1 -> 8
A12: ALBON Alexander | D12: 15 | I12: RED BULL | J12: =SUM($G$11:$G$13) -> 0 | K12: =IF(J12="",0,(RANK(J12,$J$5:$J$14)))+COUNTIF(J$5:J12,J12)-1 -> 8 | L12: =SUMIF(Portugal!$I$5:$I$14,'Émilie-Romagne'!$I12,Portugal!$L$5:$L$14)+$J12 -> 226 | M12: =IF(L12="",0,(RANK(L12,$L$5:$L$14)))+COUNTIF(L$5:L12,L12)-1 -> 2
I13: HAAS | J13: =SUM($G$26:$G$28) -> 0 | K13: =IF(J13="",0,(RANK(J13,$J$5:$J$14)))+COUNTIF(J$5:J13,J13)-1 -> 9 | L13: =SUMIF(Portugal!$I$5:$I$14,'Émilie-Romagne'!$I13,Portugal!$L$5:$L$14)+$J13 -> 3 | M13: =IF(L13="",0,(RANK(L13,$L$5:$L$14)))+COUNTIF(L$5:L13,L13)-1 -> 9
A14: PEREZ Sergio | B14: RACING POINT | D14: 6 | G14: 8 | I14: WILLIAMS | J14: =SUM($G$17:$G$19) -> 0 | K14: =IF(J14="",0,(RANK(J14,$J$5:$J$14)))+COUNTIF(J$5:J14,J14)-1 -> 10 | L14: =SUMIF(Portugal!$I$5:$I$14,'Émilie-Romagne'!$I14,Portugal!$L$5:$L$14)+$J14 -> 0 | M14: =IF(L14="",0,(RANK(L14,$L$5:$L$14)))+COUNTIF(L$5:L14,L14)-1 -> 10
A15: STROLL Lance | D15: 13
A17: RUSSELL George | B17: WILLIAMS | D17: OUT
A18: LATIFI Nichola | D18: 11
A20: RICCIARDO Daniel | B20: RENAULT | D20: 3 | G20: 15
A21: OCON Sebastian | D21: OUT
A23: KVYAT Daniil | B23: ALPHA TAURI | D23: 4 | G23: 12
A24: GASLY Pierre | D24: OUT
A26: GROSJEAN Romain | B26: HAAS | D26: 14
A27: MAGNUSSEN Kevin | D27: OUT
A29: NORRIS Lando | B29: McLAREN | D29: 8 | G29: 4
A30: SAINZ.Jr Carlos | D30: 7 | G30: 6
A32: RAÏKKÖNEN Kimi | B32: ALFA ROMEO | D32: 9 | G32: 2
A33: GIOVINAZZI Antonio | D33: 10 | G33: 1

Sheet Turquie
A1: ISTANBUL - 15 NOVEMBRE 2020
A3: PILOTES | B3: ECURIES | C3: VOITURES | D3: Finish | E3: Pôle | F3: Pt tour | G3: Points | I3: CLASSEMENT
I4: ÉCURIES | J4: POINTS | K4: RANG | L4: TOTAL | M4: PONCTUEL
A5: HAMILTON Lewis | B5: MERCEDES | D5: 1 | G5: =IFERROR(CHOOSE(D5,25,18,15,12,10,8,6,4,2,1)+(F5=1),"") -> 25 | I5: MERCEDES | J5: =SUM($G$5:$G$7) -> 25 | K5: =IF(J5="",0,(RANK(J5,$J$5:$J$14)))+COUNTIF(J$5:J5,J5)-1 -> 2 | L5: =SUMIF('Émilie-Romagne'!$I$5:$I$14,Turquie!$I5,'Émilie-Romagne'!$L$5:$L$14)+$J5 -> 504 | M5: =IF(L5="",0,(RANK(L5,$L$5:$L$14)))+COUNTIF(L$5:L5,L5)-1 -> 1
A6: BOTTAS Valtteri | D6: 14 | G6: =IFERROR(CHOOSE(D6,25,18,15,12,10,8,6,4,2,1)+(F6=1),"") ->  | I6: ALPHA TAURI | J6: =SUM($G$23:$G$25) -> 0 | K6: =IF(J6="",0,(RANK(J6,$J$5:$J$14)))+COUNTIF(J$5:J6,J6)-1 -> 7 | L6: =SUMIF('Émilie-Romagne'!$I$5:$I$14,Turquie!$I6,'Émilie-Romagne'!$L$5:$L$14)+$J6 -> 89 | M6: =IF(L6="",0,(RANK(L6,$L$5:$L$14)))+COUNTIF(L$5:L6,L6)-1 -> 7
I7: ALFA ROMEO | J7: =SUM($G$32:$G$34) -> 0 | K7: =IF(J7="",0,(RANK(J7,$J$5:$J$14)))+COUNTIF(J$5:J7,J7)-1 -> 8 | L7: =SUMIF('Émilie-Romagne'!$I$5:$I$14,Turquie!$I7,'Émilie-Romagne'!$L$5:$L$14)+$J7 -> 8 | M7: =IF(L7="",0,(RANK(L7,$L$5:$L$14)))+COUNTIF(L$5:L7,L7)-1 -> 8
A8: VETTEL Sebastian | B8: FERRARI | D8: 3 | G8: 15 | I8: Mc LAREN | J8: =SUM($G$29:$G$31) -> 15 | K8: =IF(J8="",0,(RANK(J8,$J$5:$J$14)))+COUNTIF(J$5:J8,J8)-1 -> 4 | L8: =SUMIF('Émilie-Romagne'!$I$5:$I$14,Turquie!$I8,'Émilie-Romagne'!$L$5:$L$14)+$J8 -> 149 | M8: =IF(L8="",0,(RANK(L8,$L$5:$L$14)))+COUNTIF(L$5:L8,L8)-1 -> 4
A9: LECLERC Charles | D9: 4 | G9: 12 | I9: RENAULT | J9: =SUM($G$20:$G$22) -> 1 | K9: =IF(J9="",0,(RANK(J9,$J$5:$J$14)))+COUNTIF(J$5:J9,J9)-1 -> 6 | L9: =SUMIF('Émilie-Romagne'!$I$5:$I$14,Turquie!$I9,'Émilie-Romagne'!$L$5:$L$14)+$J9 -> 136 | M9: =IF(L9="",0,(RANK(L9,$L$5:$L$14)))+COUNTIF(L$5:L9,L9)-1 -> 5
I10: RED BULL | J10: =SUM($G$11:$G$13) -> 14 | K10: =IF(J10="",0,(RANK(J10,$J$5:$J$14)))+COUNTIF(J$5:J10,J10)-1 -> 5 | L10: =SUMIF('Émilie-Romagne'!$I$5:$I$14,Turquie!$I10,'Émilie-Romagne'!$L$5:$L$14)+$J10 -> 240 | M10: =IF(L10="",0,(RANK(L10,$L$5:$L$14)))+COUNTIF(L$5:L10,L10)-1 -> 2
A11: VERSTAPPEN Max | B11: RED BULL | D11: 6 | G11: 8 | I11: FERRARI | J11: =SUM($G$8:$G$10) -> 27 | K11: =IF(J11="",0,(RANK(J11,$J$5:$J$14)))+COUNTIF(J$5:J11,J11)-1 -> 1 | L11: =SUMIF('Émilie-Romagne'!$I$5:$I$14,Turquie!$I11,'Émilie-Romagne'!$L$5:$L$14)+$J11 -> 130 | M11: =IF(L11="",0,(RANK(L11,$L$5:$L$14)))+COUNTIF(L$5:L11,L11)-1 -> 6
A12: ALBON Alexander | D12: 7 | G12: 6 | I12: WILLIAMS | J12: =SUM($G$17:$G$19) -> 0 | K12: =IF(J12="",0,(RANK(J12,$J$5:$J$14)))+COUNTIF(J$5:J12,J12)-1 -> 9 | L12: =SUMIF('Émilie-Romagne'!$I$5:$I$14,Turquie!$I12,'Émilie-Romagne'!$L$5:$L$14)+$J12 -> 0 | M12: =IF(L12="",0,(RANK(L12,$L$5:$L$14)))+COUNTIF(L$5:L12,L12)-1 -> 10
I13: RACING POINT | J13: =SUM($G$14:$G$16) -> 20 | K13: =IF(J13="",0,(RANK(J13,$J$5:$J$14)))+COUNTIF(J$5:J13,J13)-1 -> 3 | L13: =SUMIF('Émilie-Romagne'!$I$5:$I$14,Turquie!$I13,'Émilie-Romagne'!$L$5:$L$14)+$J13 -> 169 | M13: =IF(L13="",0,(RANK(L13,$L$5:$L$14)))+COUNTIF(L$5:L13,L13)-1 -> 3
A14: PEREZ Sergio | B14: RACING POINT | D14: 2 | G14: 18 | I14: HAAS | J14: =SUM($G$26:$G$28) -> 0 | K14: =IF(J14="",0,(RANK(J14,$J$5:$J$14)))+COUNTIF(J$5:J14,J14)-1 -> 10 | L14: =SUMIF('Émilie-Romagne'!$I$5:$I$14,Turquie!$I14,'Émilie-Romagne'!$L$5:$L$14)+$J14 -> 3 | M14: =IF(L14="",0,(RANK(L14,$L$5:$L$14)))+COUNTIF(L$5:L14,L14)-1 -> 9
A15: STROLL Lance | D15: 9 | E15: 1 | G15: 2
A17: RUSSELL George | B17: WILLIAMS | D17: 16 | I17: HAMILTON champion du monde avec son 7ième titre
A18: LATIFI Nichola | D18: OUT
A20: RICCIARDO Daniel | B20: RENAULT | D20: 10 | G20: 1
A21: OCON Sebastian | D21: 11
A23: KVYAT Daniil | B23: ALPHA TAURI | D23: 12
A24: GASLY Pierre | D24: 13
A26: GROSJEAN Romain | B26: HAAS | D26: OUT
A27: MAGNUSSEN Kevin | D27: OUT
A29: NORRIS Lando | B29: McLAREN | D29: 8 | F29: 1 | G29: 5
A30: SAINZ.Jr Carlos | D30: 5 | G30: 10
A32: RAÏKKÖNEN Kimi | B32: ALFA ROMEO | D32: 15
A33: GIOVINAZZI Antonio | D33: OUT

Sheet Bahrein
A1: SAKHIR - 6 DÉCEMBRE 2020
A3: PILOTES | B3: ECURIES | C3: VOITURES | D3: Finish | E3: Pôle | F3: Pt tour | G3: Points | I3: CLASSEMENT
I4: ÉCURIES | J4: POINTS | K4: RANG | L4: TOTAL | M4: PONCTUEL
A5: HAMILTON Lewis | B5: MERCEDES | D5: 1 | E5: 1 | G5: =IFERROR(CHOOSE(D5,25,18,15,12,10,8,6,4,2,1)+(F5=1),"") -> 25 | I5: ALFA ROMEO | J5: =SUM($G$32:$G$34) -> 0 | K5: =IF(J5="",0,(RANK(J5,$J$5:$J$14)))+COUNTIF(J$5:J5,J5)-1 -> 7 | L5: =SUMIF(Turquie!$I$5:$I$14,Bahrein!$I5,Turquie!$L$5:$L$14)+$J$514 -> 8 | M5: =IF(L5="",0,(RANK(L5,$L$5:$L$14)))+COUNTIF(L$5:L5,L5)-1 -> 8
A6: BOTTAS Valtteri | D6: 8 | G6: =IFERROR(CHOOSE(D6,25,18,15,12,10,8,6,4,2,1)+(F6=1),"") -> 4 | I6: Mc LAREN | J6: =SUM($G$29:$G$31) -> 22 | K6: =IF(J6="",0,(RANK(J6,$J$5:$J$14)))+COUNTIF(J$5:J6,J6)-1 -> 3 | L6: =SUMIF(Turquie!$I$5:$I$14,Bahrein!$I6,Turquie!$L$5:$L$14)+$J$514 -> 149 | M6: =IF(L6="",0,(RANK(L6,$L$5:$L$14)))+COUNTIF(L$5:L6,L6)-1 -> 4
I7: RENAULT | J7: =SUM($G$20:$G$22) -> 8 | K7: =IF(J7="",0,(RANK(J7,$J$5:$J$14)))+COUNTIF(J$5:J7,J7)-1 -> 4 | L7: =SUMIF(Turquie!$I$5:$I$14,Bahrein!$I7,Turquie!$L$5:$L$14)+$J$514 -> 136 | M7: =IF(L7="",0,(RANK(L7,$L$5:$L$14)))+COUNTIF(L$5:L7,L7)-1 -> 5
A8: VETTEL Sebastian | B8: FERRARI | D8: 13 | I8: RED BULL | J8: =SUM($G$11:$G$13) -> 34 | K8: =IF(J8="",0,(RANK(J8,$J$5:$J$14)))+COUNTIF(J$5:J8,J8)-1 -> 1 | L8: =SUMIF(Turquie!$I$5:$I$14,Bahrein!$I8,Turquie!$L$5:$L$14)+$J$514 -> 240 | M8: =IF(L8="",0,(RANK(L8,$L$5:$L$14)))+COUNTIF(L$5:L8,L8)-1 -> 2
A9: LECLERC Charles | D9: 10 | G9: 1 | I9: FERRARI | J9: =SUM($G$8:$G$10) -> 1 | K9: =IF(J9="",0,(RANK(J9,$J$5:$J$14)))+COUNTIF(J$5:J9,J9)-1 -> 6 | L9: =SUMIF(Turquie!$I$5:$I$14,Bahrein!$I9,Turquie!$L$5:$L$14)+$J$514 -> 130 | M9: =IF(L9="",0,(RANK(L9,$L$5:$L$14)))+COUNTIF(L$5:L9,L9)-1 -> 6
I10: ALPHA TAURI | J10: =SUM($G$23:$G$25) -> 8 | K10: =IF(J10="",0,(RANK(J10,$J$5:$J$14)))+COUNTIF(J$5:J10,J10)-1 -> 5 | L10: =SUMIF(Turquie!$I$5:$I$14,Bahrein!$I10,Turquie!$L$5:$L$14)+$J$514 -> 89 | M10: =IF(L10="",0,(RANK(L10,$L$5:$L$14)))+COUNTIF(L$5:L10,L10)-1 -> 7
A11: VERSTAPPEN Max | B11: RED BULL | D11: 2 | F11: 1 | G11: 19 | I11: WILLIAMS | J11: =SUM($G$17:$G$19) -> 0 | K11: =IF(J11="",0,(RANK(J11,$J$5:$J$14)))+COUNTIF(J$5:J11,J11)-1 -> 8 | L11: =SUMIF(Turquie!$I$5:$I$14,Bahrein!$I11,Turquie!$L$5:$L$14)+$J$514 -> 0 | M11: =IF(L11="",0,(RANK(L11,$L$5:$L$14)))+COUNTIF(L$5:L11,L11)-1 -> 10
A12: ALBON Alexander | D12: 3 | G12: 15 | I12: MERCEDES | J12: =SUM($G$5:$G$7) -> 29 | K12: =IF(J12="",0,(RANK(J12,$J$5:$J$14)))+COUNTIF(J$5:J12,J12)-1 -> 2 | L12: =SUMIF(Turquie!$I$5:$I$14,Bahrein!$I12,Turquie!$L$5:$L$14)+$J$514 -> 504 | M12: =IF(L12="",0,(RANK(L12,$L$5:$L$14)))+COUNTIF(L$5:L12,L12)-1 -> 1
I13: RACING POINT | J13: =SUM($G$14:$G$16) -> 0 | K13: =IF(J13="",0,(RANK(J13,$J$5:$J$14)))+COUNTIF(J$5:J13,J13)-1 -> 9 | L13: =SUMIF(Turquie!$I$5:$I$14,Bahrein!$I13,Turquie!$L$5:$L$14)+$J$514 -> 169 | M13: =IF(L13="",0,(RANK(L13,$L$5:$L$14)))+COUNTIF(L$5:L13,L13)-1 -> 3
A14: PEREZ Sergio | B14: RACING POINT | D14: OUT | I14: HAAS | J14: =SUM($G$26:$G$28) -> 0 | K14: =IF(J14="",0,(RANK(J14,$J$5:$J$14)))+COUNTIF(J$5:J14,J14)-1 -> 10 | L14: =SUMIF(Turquie!$I$5:$I$14,Bahrein!$I14,Turquie!$L$5:$L$14)+$J$514 -> 3 | M14: =IF(L14="",0,(RANK(L14,$L$5:$L$14)))+COUNTIF(L$5:L14,L14)-1 -> 9
A15: STROLL Lance | D15: OUT
A17: RUSSELL George | B17: WILLIAMS | D17: 12
A18: LATIFI Nichola | D18: 14
A20: RICCIARDO Daniel | B20: RENAULT | D20: 7 | G20: 6
A21: OCON Sebastian | D21: 9 | G21: 2
A23: KVYAT Daniil | B23: ALPHA TAURI | D23: 11
A24: GASLY Pierre | D24: 6 | G24: 8
A26: GROSJEAN Romain | B26: HAAS | D26: OUT
A27: MAGNUSSEN Kevin | D27: 16
A29: NORRIS Lando | B29: McLAREN | D29: 4 | G29: 12
A30: SAINZ.Jr Carlos | D30: 5 | G30: 10
A32: RAÏKKÖNEN Kimi | B32: ALFA ROMEO | D32: 15
A33: GIOVINAZZI Antonio

Sheet Sakhir
A1: SAKHIR - 6 DÉCEMBRE 2020
A3: PILOTES | B3: ECURIES | C3: VOITURES | D3: Finish | E3: Pôle | F3: Pt tour | G3: Points | I3: CLASSEMENT
I4: ÉCURIES | J4: POINTS | K4: RANG | L4: TOTAL | M4: PONCTUEL
A5: HAMILTON Lewis | B5: MERCEDES | G5: =IFERROR(CHOOSE(D5,25,18,15,12,10,8,6,4,2,1)+(F5=1),"") ->  | I5: ALFA ROMEO | J5: =SUM($G$32:$G$34) -> 0 | K5: =IF(J5="",0,(RANK(J5,$J$5:$J$14)))+COUNTIF(J$5:J5,J5)-1 -> 1 | L5: =SUMIF(Bahrein!$I$5:$I$14,Sakhir!$I5,Bahrein!$L$5:$L$14)+$J$514 -> 8 | M5: =IF(L5="",0,(RANK(L5,$L$5:$L$14)))+COUNTIF(L$5:L5,L5)-1 -> 8
A6: BOTTAS Valtteri | G6: =IFERROR(CHOOSE(D6,25,18,15,12,10,8,6,4,2,1)+(F6=1),"") ->  | I6: Mc LAREN | J6: =SUM($G$29:$G$31) -> 0 | K6: =IF(J6="",0,(RANK(J6,$J$5:$J$14)))+COUNTIF(J$5:J6,J6)-1 -> 2 | L6: =SUMIF(Bahrein!$I$5:$I$14,Sakhir!$I6,Bahrein!$L$5:$L$14)+$J$514 -> 149 | M6: =IF(L6="",0,(RANK(L6,$L$5:$L$14)))+COUNTIF(L$5:L6,L6)-1 -> 4
I7: RENAULT | J7: =SUM($G$20:$G$22) -> 0 | K7: =IF(J7="",0,(RANK(J7,$J$5:$J$14)))+COUNTIF(J$5:J7,J7)-1 -> 3 | L7: =SUMIF(Bahrein!$I$5:$I$14,Sakhir!$I7,Bahrein!$L$5:$L$14)+$J$514 -> 136 | M7: =IF(L7="",0,(RANK(L7,$L$5:$L$14)))+COUNTIF(L$5:L7,L7)-1 -> 5
A8: VETTEL Sebastian | B8: FERRARI | I8: RED BULL | J8: =SUM($G$11:$G$13) -> 0 | K8: =IF(J8="",0,(RANK(J8,$J$5:$J$14)))+COUNTIF(J$5:J8,J8)-1 -> 4 | L8: =SUMIF(Bahrein!$I$5:$I$14,Sakhir!$I8,Bahrein!$L$5:$L$14)+$J$514 -> 240 | M8: =IF(L8="",0,(RANK(L8,$L$5:$L$14)))+COUNTIF(L$5:L8,L8)-1 -> 2
A9: LECLERC Charles | I9: FERRARI | J9: =SUM($G$8:$G$10) -> 0 | K9: =IF(J9="",0,(RANK(J9,$J$5:$J$14)))+COUNTIF(J$5:J9,J9)-1 -> 5 | L9: =SUMIF(Bahrein!$I$5:$I$14,Sakhir!$I9,Bahrein!$L$5:$L$14)+$J$514 -> 130 | M9: =IF(L9="",0,(RANK(L9,$L$5:$L$14)))+COUNTIF(L$5:L9,L9)-1 -> 6
I10: ALPHA TAURI | J10: =SUM($G$23:$G$25) -> 0 | K10: =IF(J10="",0,(RANK(J10,$J$5:$J$14)))+COUNTIF(J$5:J10,J10)-1 -> 6 | L10: =SUMIF(Bahrein!$I$5:$I$14,Sakhir!$I10,Bahrein!$L$5:$L$14)+$J$514 -> 89 | M10: =IF(L10="",0,(RANK(L10,$L$5:$L$14)))+COUNTIF(L$5:L10,L10)-1 -> 7
A11: VERSTAPPEN Max | B11: RED BULL | I11: WILLIAMS | J11: =SUM($G$17:$G$19) -> 0 | K11: =IF(J11="",0,(RANK(J11,$J$5:$J$14)))+COUNTIF(J$5:J11,J11)-1 -> 7 | L11: =SUMIF(Bahrein!$I$5:$I$14,Sakhir!$I11,Bahrein!$L$5:$L$14)+$J$514 -> 0 | M11: =IF(L11="",0,(RANK(L11,$L$5:$L$14)))+COUNTIF(L$5:L11,L11)-1 -> 10
A12: ALBON Alexander | I12: MERCEDES | J12: =SUM($G$5:$G$7) -> 0 | K12: =IF(J12="",0,(RANK(J12,$J$5:$J$14)))+COUNTIF(J$5:J12,J12)-1 -> 8 | L12: =SUMIF(Bahrein!$I$5:$I$14,Sakhir!$I12,Bahrein!$L$5:$L$14)+$J$514 -> 504 | M12: =IF(L12="",0,(RANK(L12,$L$5:$L$14)))+COUNTIF(L$5:L12,L12)-1 -> 1
I13: RACING POINT | J13: =SUM($G$14:$G$16) -> 0 | K13: =IF(J13="",0,(RANK(J13,$J$5:$J$14)))+COUNTIF(J$5:J13,J13)-1 -> 9 | L13: =SUMIF(Bahrein!$I$5:$I$14,Sakhir!$I13,Bahrein!$L$5:$L$14)+$J$514 -> 169 | M13: =IF(L13="",0,(RANK(L13,$L$5:$L$14)))+COUNTIF(L$5:L13,L13)-1 -> 3
A14: PEREZ Sergio | B14: RACING POINT | I14: HAAS | J14: =SUM($G$26:$G$28) -> 0 | K14: =IF(J14="",0,(RANK(J14,$J$5:$J$14)))+COUNTIF(J$5:J14,J14)-1 -> 10 | L14: =SUMIF(Bahrein!$I$5:$I$14,Sakhir!$I14,Bahrein!$L$5:$L$14)+$J$514 -> 3 | M14: =IF(L14="",0,(RANK(L14,$L$5:$L$14)))+COUNTIF(L$5:L14,L14)-1 -> 9
A15: STROLL Lance
A17: RUSSELL George | B17: WILLIAMS
A18: LATIFI Nichola
A20: RICCIARDO Daniel | B20: RENAULT
A21: OCON Sebastian
A23: KVYAT Daniil | B23: ALPHA TAURI
A24: GASLY Pierre
A26: GROSJEAN Romain | B26: HAAS
A27: MAGNUSSEN Kevin
A29: NORRIS Lando | B29: McLAREN
A30: SAINZ.Jr Carlos
A32: RAÏKKÖNEN Kimi | B32: ALFA ROMEO
A33: GIOVINAZZI Antonio

Sheet AbuDhabi
A1: YAS MARINA - 13 DÉCEMBRE 2020
A3: PILOTES | B3: ECURIES | C3: VOITURES | D3: Finish | E3: Pôle | F3: Pt tour | G3: Points | I3: CLASSEMENT
I4: ÉCURIES | J4: POINTS | K4: RANG | L4: TOTAL | M4: PONCTUEL
A5: HAMILTON Lewis | B5: MERCEDES | G5: =IFERROR(CHOOSE(D5,25,18,15,12,10,8,6,4,2,1)+(F5=1),"") ->  | I5: ALFA ROMEO | J5: =SUM($G$32:$G$34) -> 0 | K5: =IF(J5="",0,(RANK(J5,$J$5:$J$14)))+COUNTIF(J$5:J5,J5)-1 -> 1 | L5: =SUMIF(Sakhir!$I$5:$I$14,AbuDhabi!$I5,Sakhir!$L$5:$L$14)+$J$514 -> 8 | M5: =IF(L5="",0,(RANK(L5,$L$5:$L$14)))+COUNTIF(L$5:L5,L5)-1 -> 8
A6: BOTTAS Valtteri | G6: =IFERROR(CHOOSE(D6,25,18,15,12,10,8,6,4,2,1)+(F6=1),"") ->  | I6: Mc LAREN | J6: =SUM($G$29:$G$31) -> 0 | K6: =IF(J6="",0,(RANK(J6,$J$5:$J$14)))+COUNTIF(J$5:J6,J6)-1 -> 2 | L6: =SUMIF(Sakhir!$I$5:$I$14,AbuDhabi!$I6,Sakhir!$L$5:$L$14)+$J$514 -> 149 | M6: =IF(L6="",0,(RANK(L6,$L$5:$L$14)))+COUNTIF(L$5:L6,L6)-1 -> 4
I7: RENAULT | J7: =SUM($G$20:$G$22) -> 0 | K7: =IF(J7="",0,(RANK(J7,$J$5:$J$14)))+COUNTIF(J$5:J7,J7)-1 -> 3 | L7: =SUMIF(Sakhir!$I$5:$I$14,AbuDhabi!$I7,Sakhir!$L$5:$L$14)+$J$514 -> 136 | M7: =IF(L7="",0,(RANK(L7,$L$5:$L$14)))+COUNTIF(L$5:L7,L7)-1 -> 5
A8: VETTEL Sebastian | B8: FERRARI | I8: RED BULL | J8: =SUM($G$11:$G$13) -> 0 | K8: =IF(J8="",0,(RANK(J8,$J$5:$J$14)))+COUNTIF(J$5:J8,J8)-1 -> 4 | L8: =SUMIF(Sakhir!$I$5:$I$14,AbuDhabi!$I8,Sakhir!$L$5:$L$14)+$J$514 -> 240 | M8: =IF(L8="",0,(RANK(L8,$L$5:$L$14)))+COUNTIF(L$5:L8,L8)-1 -> 2
A9: LECLERC Charles | I9: FERRARI | J9: =SUM($G$8:$G$10) -> 0 | K9: =IF(J9="",0,(RANK(J9,$J$5:$J$14)))+COUNTIF(J$5:J9,J9)-1 -> 5 | L9: =SUMIF(Sakhir!$I$5:$I$14,AbuDhabi!$I9,Sakhir!$L$5:$L$14)+$J$514 -> 130 | M9: =IF(L9="",0,(RANK(L9,$L$5:$L$14)))+COUNTIF(L$5:L9,L9)-1 -> 6
I10: ALPHA TAURI | J10: =SUM($G$23:$G$25) -> 0 | K10: =IF(J10="",0,(RANK(J10,$J$5:$J$14)))+COUNTIF(J$5:J10,J10)-1 -> 6 | L10: =SUMIF(Sakhir!$I$5:$I$14,AbuDhabi!$I10,Sakhir!$L$5:$L$14)+$J$514 -> 89 | M10: =IF(L10="",0,(RANK(L10,$L$5:$L$14)))+COUNTIF(L$5:L10,L10)-1 -> 7
A11: VERSTAPPEN Max | B11: RED BULL | I11: WILLIAMS | J11: =SUM($G$17:$G$19) -> 0 | K11: =IF(J11="",0,(RANK(J11,$J$5:$J$14)))+COUNTIF(J$5:J11,J11)-1 -> 7 | L11: =SUMIF(Sakhir!$I$5:$I$14,AbuDhabi!$I11,Sakhir!$L$5:$L$14)+$J$514 -> 0 | M11: =IF(L11="",0,(RANK(L11,$L$5:$L$14)))+COUNTIF(L$5:L11,L11)-1 -> 10
A12: ALBON Alexander | I12: MERCEDES | J12: =SUM($G$5:$G$7) -> 0 | K12: =IF(J12="",0,(RANK(J12,$J$5:$J$14)))+COUNTIF(J$5:J12,J12)-1 -> 8 | L12: =SUMIF(Sakhir!$I$5:$I$14,AbuDhabi!$I12,Sakhir!$L$5:$L$14)+$J$514 -> 504 | M12: =IF(L12="",0,(RANK(L12,$L$5:$L$14)))+COUNTIF(L$5:L12,L12)-1 -> 1
I13: RACING POINT | J13: =SUM($G$14:$G$16) -> 0 | K13: =IF(J13="",0,(RANK(J13,$J$5:$J$14)))+COUNTIF(J$5:J13,J13)-1 -> 9 | L13: =SUMIF(Sakhir!$I$5:$I$14,AbuDhabi!$I13,Sakhir!$L$5:$L$14)+$J$514 -> 169 | M13: =IF(L13="",0,(RANK(L13,$L$5:$L$14)))+COUNTIF(L$5:L13,L13)-1 -> 3
A14: PEREZ Sergio | B14: RACING POINT | I14: HAAS | J14: =SUM($G$26:$G$28) -> 0 | K14: =IF(J14="",0,(RANK(J14,$J$5:$J$14)))+COUNTIF(J$5:J14,J14)-1 -> 10 | L14: =SUMIF(Sakhir!$I$5:$I$14,AbuDhabi!$I14,Sakhir!$L$5:$L$14)+$J$514 -> 3 | M14: =IF(L14="",0,(RANK(L14,$L$5:$L$14)))+COUNTIF(L$5:L14,L14)-1 -> 9
A15: STROLL Lance
A17: RUSSELL George | B17: WILLIAMS
A18: LATIFI Nichola
A20: RICCIARDO Daniel | B20: RENAULT
A21: OCON Sebastian
A23: KVYAT Daniil | B23: ALPHA TAURI
A24: GASLY Pierre
A26: GROSJEAN Romain | B26: HAAS
A27: MAGNUSSEN Kevin
A29: NORRIS Lando | B29: McLAREN
A30: SAINZ.Jr Carlos
A32: RAÏKKÖNEN Kimi | B32: ALFA ROMEO
A33: GIOVINAZZI Antonio
